Department,Entity,Posted Date,Internal Voucher Number, Invoice Line Amount Net GBP ,Supplier Name,Account Code
FCO,FCO,15/03/2017,HOREFUNDAPR16-JAN17NO.2,"189,000,000.00",HOME OFFICE,UKBA Visa Income Creditor Control
FCO,FCO,09/03/2017,BC012-16R,"13,699,112.00",BRITISH COUNCIL,Programme Spend (Oracle Projects Control Account)
FCO,FCO,24/03/2017,BBCWS012-16RC,"10,636,677.00",BBC  BRITISH BROADCASTING CORPORATION,Programme Spend (Oracle Projects Control Account)
FCO,FCO,07/03/2017,GETOECDINT.SUBS2017PAYMENT0002,"9,572,980.29",ORGANISATION FOR ECONOMIC CO OPERATION AND DEVELOPMENT OECD,Programme Spend (Oracle Projects Control Account)
FCO,FCO,02/03/2017,FC(CC)(2017)0008(CBC-01),"8,311,550.58",NATO INTERNATIONAL STAFF,Programme Spend (Oracle Projects Control Account)
FCO,FCO,09/03/2017,CAOBLG1-15/11/16,"6,925,643.59",CAO OTHER DEBTORS,Proceeds from Assets held for sale
FCO,FCO,01/03/2017,CAOBLG1-15/11/6,"6,688,461.19",CAO OTHER DEBTORS,Proceeds from Assets held for sale
FCO,FCO,14/03/2017,FC(CC)(2017)0001(NHQ-CF-NF-01)B,"6,058,057.71",NATO INTERNATIONAL STAFF,Programme Spend (Oracle Projects Control Account)
FCO,FCO,01/03/2017,IOD001UNRB2017,"5,913,849.60",UNITED NATIONS,Programme Spend (Oracle Projects Control Account)
FCO,FCO,28/03/2017,ASLC PEN MAR 17,"3,545,058.43",CABINET OFFICE,Multiple Accounts
FCO,FCO,02/03/2017,BBCWS011-16RC-26JAN17,"3,500,000.00",BBC  BRITISH BROADCASTING CORPORATION,Programme Spend (Oracle Projects Control Account)
FCO,FCO,02/03/2017,SIN000218,"3,350,000.00",THE ASSOCIATION OF COMMONWEALTH UNIVERSITIES,Programme Spend (Oracle Projects Control Account)
FCO,FCO,27/03/2017,468366,"3,272,496.03",VODAFONE LTD CABLE AND WIRELESS UK,Telephone line and equipment rental charges
FCO,FCO,03/03/2017,PAFCSSF005.27.02.17,"3,207,544.83",UNOPS,Programme Spend (Oracle Projects Control Account)
FCO,FCO,07/03/2017,GETOECDINT.SUBS2017PAYMENT0001,"3,190,993.43",ORGANISATION FOR ECONOMIC CO OPERATION AND DEVELOPMENT OECD,Programme Spend (Oracle Projects Control Account)
FCO,FCO,30/03/2017,CDMUST160033,"3,067,000.00",UNITED NATIONS,Programme Spend (Oracle Projects Control Account)
FCO,FCO,01/03/2017,TF072704-007565A,"3,000,000.00",THE WORLD BANK,Programme Spend (Oracle Projects Control Account)
FCO,FCO,01/03/2017,7005685-13-MAR-17,"2,789,980.84",THE ROYAL BANK OF SCOTLAND,Corporate Credit Card Clearing Account
FCO,FCO,09/03/2017,PAYE/NI FEB17,"2,642,745.78",HMRC HM REVENUE AND CUSTOMS,Multiple Accounts
FCO,FCO,23/03/2017,1583356,"2,123,917.61",ORACLE CORPORATION (UK) LTD,Information Systems Maintenance
FCO,FCO,21/03/2017,INV126-003173,"1,987,419.45",G4S RISK MANAGEMENT LTD,UK Guarding Contracts Overseas
FCO,FCO,23/03/2017,INV126-003174,"1,684,215.62",G4S RISK MANAGEMENT LTD,UK Guarding Contracts Overseas
FCO,FCO,13/03/2017,POE201704,"1,550,000.00",ISS FACILITY SERVICES LTD FCO OP - POE,FMCU POE Trust Account Debtor
FCO,FCO,24/03/2017,6060381,"1,505,004.00",FCO SERVICES,Specialist Contractors
FCO,FCO,31/03/2017,7071-03,"1,416,697.22",ADAM SMITH INTERNATIONAL,Programme Spend (Oracle Projects Control Account)
FCO,FCO,07/03/2017,6060061,"1,348,862.68",FCO SERVICES,Residential Property Services
FCO,FCO,28/03/2017,2630,"1,331,749.87",JUDIN COMBRINCK INC,Rent Deposits
FCO,FCO,31/03/2017,7071-04,"1,238,164.67",ADAM SMITH INTERNATIONAL,Programme Spend (Oracle Projects Control Account)
FCO,FCO,01/03/2017,7009308-14-MAR-17,"1,201,534.67",THE ROYAL BANK OF SCOTLAND,Travel Package Advance Overseas Posting (Credit Card Payments Only)
FCO,FCO,03/03/2017,VAT205,"1,163,340.60",EUROPEAN BANK FOR CONSTRUCTION AND DEVELOPMENT,Protocol - General VAT Refunds to Other Organisations
FCO,FCO,08/03/2017,ASLC PEN FEB 17,"1,086,094.18",CABINET OFFICE,Multiple Accounts
FCO,FCO,24/03/2017,9300188011,"1,065,993.00",DEPARTMENT FOR TRANSPORT,Programme Spend (Oracle Projects Control Account)
FCO,FCO,27/03/2017,468355,"1,005,187.10",VODAFONE LTD CABLE AND WIRELESS UK,Telephone line and equipment rental charges
FCO,FCO,28/03/2017,IRAQCSSF20170004,"1,000,000.00",UNITED NATIONS,Programme Spend (Oracle Projects Control Account)
FCO,FCO,09/03/2017,UK301147,"942,464.78",GARDA WORLD LTD,UK Mobile Guarding Contract overseas
FCO,FCO,14/03/2017,INV005272,"854,035.00",ULTRA ELECTRONICS FORENSIC TECHNOLOGY INC,Programme Spend (Oracle Projects Control Account)
FCO,FCO,31/03/2017,6.23E+11,"800,000.00",DEPARTMENT FOR INTERNATIONAL TRADE,Programme Spend (Oracle Projects Control Account)
FCO,FCO,03/03/2017,12781,"766,178.00",DYNASAFE BACTEC LTD,Programme Spend (Oracle Projects Control Account)
FCO,FCO,27/03/2017,3780053238,"692,662.00",COMPUTACENTER UK LTD,IT/IS Consultancy
FCO,FCO,15/03/2017,3780052894,"675,000.00",COMPUTACENTER UK LTD,Assets Under Construction (Oracle PA Control Account)
FCO,FCO,27/03/2017,103005248,"644,756.00",JANKEL ARMOURING LTD,Assets Under Construction (Oracle PA Control Account)
FCO,FCO,23/03/2017,S017626P,"642,200.00",S MACNEILLIE & SON LTD,Assets Under Construction (Oracle PA Control Account)
FCO,FCO,29/03/2017,3881135331,"631,235.35",COMPUTACENTER UK LTD,Assets Under Construction (Oracle PA Control Account)
FCO,FCO,03/03/2017,7484335,"586,134.00",MOD MINISTRY OF DEFENCE,Programme Spend (Oracle Projects Control Account)
FCO,FCO,27/03/2017,FCO-HOREFUNDFORGRATISVISA/MEDICALFEES2016/17,"585,075.00",HOME OFFICE,Programme Spend (Oracle Projects Control Account)
FCO,FCO,23/03/2017,3780053000,"579,528.17",COMPUTACENTER UK LTD,Assets Under Construction (Oracle PA Control Account)
FCO,FCO,28/03/2017,FCO/LY/01-09MAR17,"568,289.53",IOM INTERNATIONAL ORG FOR MIGRATION,Programme Spend (Oracle Projects Control Account)
FCO,FCO,30/03/2017,dcal 30-MAR-2017 1716,"546,111.78",THE ROYAL BANK OF SCOTLAND,Multiple Accounts
FCO,FCO,03/03/2017,5501382106,"534,960.00",KPMG LLP,Training Courses
FCO,FCO,23/03/2017,91751428,"532,949.10",HYDROGRAPHIC OFFICE,Programme Spend (Oracle Projects Control Account)
FCO,FCO,30/03/2017,INCOSTRAT-AVICENNA.-011,"532,807.83",INCOSTRAT,Programme Spend (Oracle Projects Control Account)
FCO,FCO,01/03/2017,SIN006114,"531,011.78",RISK ADVISORY GROUP PLC,Programme Spend (Oracle Projects Control Account)
FCO,FCO,06/03/2017,224,"505,893.78",ARTEOS GMBH,Multiple Accounts
FCO,FCO,22/03/2017,6060329,"504,131.93",FCO SERVICES,Information Systems Implementation
FCO,FCO,15/03/2017,CDPKB16077,"500,000.00",UNDP MULTI PARTNER TRUST FUND OFFICE,Programme Spend (Oracle Projects Control Account)
FCO,FCO,22/03/2017,CA_WB2016-17NAJU_20032017,"500,000.00",THE WORLD BANK,Programme Spend (Oracle Projects Control Account)
FCO,FCO,31/03/2017,28302456,"492,501.21",AECOM,Programme Spend (Oracle Projects Control Account)
FCO,FCO,16/03/2017,INCOSTRAT-AVICENNA-010,"489,396.75",INCOSTRAT,Programme Spend (Oracle Projects Control Account)
FCO,FCO,02/03/2017,SIN018023,"484,300.00",THE ASSOCIATION OF COMMONWEALTH UNIVERSITIES,Programme Spend (Oracle Projects Control Account)
FCO,FCO,06/03/2017,223,"482,780.74",ARTEOS GMBH,Multiple Accounts
FCO,FCO,08/03/2017,6060085,"481,984.07",FCO SERVICES,Assets Under Construction (Oracle PA Control Account)
FCO,FCO,16/03/2017,28-Feb-17,"477,388.98",NORWEGIAN REFUGEE COUNCIL SOMALIA,Programme Spend (Oracle Projects Control Account)
FCO,FCO,30/03/2017,CDCD_001_22032017,"430,000.00",JORDAN SCU,Programme Spend (Oracle Projects Control Account)
FCO,FCO,08/03/2017,FCOACPDEC2016,"420,446.38",CABINET OFFICE,Early Retirement Costs (Pre VES)
FCO,FCO,27/03/2017,6060452,"416,239.25",FCO SERVICES,Assets Under Construction (Oracle PA Control Account)
FCO,FCO,15/03/2017,CON-FCO-17-006,"409,729.03",RA INITERNATIONAL,Programme Spend (Oracle Projects Control Account)
FCO,FCO,24/03/2017,KPMG 20.03.17,"404,715.37",KPMG FIDUCIAIRE,Multiple Accounts
FCO,FCO,21/03/2017,SOMCSSF15/03/2017,"402,466.84",UNOPS,Programme Spend (Oracle Projects Control Account)
FCO,FCO,14/03/2017,INV005273,"402,149.00",ULTRA ELECTRONICS FORENSIC TECHNOLOGY INC,Programme Spend (Oracle Projects Control Account)
FCO,FCO,21/03/2017,INV005274,"402,149.00",ULTRA ELECTRONICS FORENSIC TECHNOLOGY INC,Programme Spend (Oracle Projects Control Account)
FCO,FCO,21/03/2017,INV005275,"402,149.00",ULTRA ELECTRONICS FORENSIC TECHNOLOGY INC,Programme Spend (Oracle Projects Control Account)
FCO,FCO,28/03/2017,INV005295,"402,149.00",ULTRA ELECTRONICS FORENSIC TECHNOLOGY INC,Programme Spend (Oracle Projects Control Account)
FCO,FCO,02/03/2017,UT/17/009,"402,136.13",TEXAF,Multiple Accounts
FCO,FCO,16/03/2017,3780052827,"395,036.08",COMPUTACENTER UK LTD,Assets Under Construction (Oracle PA Control Account)
FCO,FCO,17/03/2017,2017/0002,"394,202.15",COMITATO INTERNAZIONALE PER LO SVILUPPO DEI POPOLI  CISP,Programme Spend (Oracle Projects Control Account)
FCO,FCO,24/03/2017,1470,"387,704.36",OROSTREAM INTERNATIONAL CONTRACTS LTD,Assets Under Construction (Oracle PA Control Account)
FCO,FCO,01/03/2017,dcal 01-MAR-2017 1445,"385,304.37",THE ROYAL BANK OF SCOTLAND,Multiple Accounts
FCO,FCO,17/03/2017,APRP-17-01,"366,508.94",HIGH PEACE COUNCIL,Programme Spend (Oracle Projects Control Account)
FCO,FCO,03/03/2017,VAT209,"366,448.77",EUROPEAN MOLECULAR BIOLOGY LABORATORY,Protocol - General VAT Refunds to Other Organisations
FCO,FCO,16/03/2017,15-Mar-17,"363,150.46",THE HALO TRUST,Programme Spend (Oracle Projects Control Account)
FCO,FCO,28/03/2017,441,"354,520.06",LEONOR GARCIA DUARTE,Assets Under Construction (Oracle PA Control Account)
FCO,FCO,29/03/2017,250017693,"354,000.00",CABINET OFFICE,Programme Spend (Oracle Projects Control Account)
FCO,FCO,15/03/2017,23-Feb-17,"352,105.25",INTERNATIONAL RELIEF AND DEVELOPMENT,Programme Spend (Oracle Projects Control Account)
FCO,FCO,23/03/2017,2425,"350,645.88",JUDIN COMBRINCK INC,Assets Under Construction (Oracle PA Control Account)
FCO,FCO,14/03/2017,AIL17171,"350,000.00",AUTOMATED INTELLIGENCE LTD,Assets Under Construction (Oracle PA Control Account)
FCO,FCO,27/03/2017,468356,"346,524.20",VODAFONE LTD CABLE AND WIRELESS UK,Telephone line and equipment rental charges
FCO,FCO,03/03/2017,Q1-570,"346,479.93",TORCHLIGHT SOLUTIONS LTD,Programme Spend (Oracle Projects Control Account)
FCO,FCO,29/03/2017,363/002,"344,116.99",AFRICAN SKIES LTD,Programme Spend (Oracle Projects Control Account)
FCO,FCO,13/03/2017,CDPKB16073,"341,447.33",MOD MINISTRY OF DEFENCE,Programme Spend (Oracle Projects Control Account)
FCO,FCO,30/03/2017,6060494,"339,202.00",FCO SERVICES,Assets Under Construction (Oracle PA Control Account)
FCO,FCO,06/03/2017,22FEB17A,"332,697.89",THE CARTER CENTER INC,Programme Spend (Oracle Projects Control Account)
FCO,FCO,15/03/2017,1001016691,"323,347.81",BAE SYSTEMS APPLIED INTELLIGENCE LIMITED,Multiple Accounts
FCO,FCO,15/03/2017,6060169,"321,024.00",FCO SERVICES,Assets Under Construction (Oracle PA Control Account)
FCO,FCO,29/03/2017,OTD_SED001_280317,"313,362.43",ASCENSION ISLAND GOVERNMENT,Programme Spend (Oracle Projects Control Account)
FCO,FCO,06/03/2017,CB_ATTVTF_01032017,"312,118.05",ARMS TRADE TREATY SECRETARIAT,Programme Spend (Oracle Projects Control Account)
FCO,FCO,23/03/2017,INV126-003175,"303,203.83",G4S RISK MANAGEMENT LTD,UK Guarding Contracts Overseas
FCO,FCO,03/03/2017,5,"300,486.71",KOMATSUBARA KOMUTEN LTD,Recharge Suspense Account (Oracle PA Control Account)
FCO,FCO,10/03/2017,17002069BARFDOPOL00531,"300,000.00",INTERNATIONAL COMMITTEE OF THE RED CROSS,Programme Spend (Oracle Projects Control Account)
FCO,FCO,23/03/2017,2627,"299,930.33",JUDIN COMBRINCK INC,Assets Under Construction (Oracle PA Control Account)
FCO,FCO,21/03/2017,FCOACPFEB2017,"299,625.05",CABINET OFFICE,Early Retirement Costs (Pre VES)
FCO,FCO,21/03/2017,11,"297,115.98",TECH HUB SAL,Programme Spend (Oracle Projects Control Account)
FCO,FCO,30/03/2017,6060546,"295,968.09",FCO SERVICES,Residential Property Services
FCO,FCO,15/03/2017,319094-0001,"295,638.84",PALLADIUM,Online Content
FCO,FCO,24/03/2017,4-24MAR17,"287,672.25",THE HALO TRUST,Programme Spend (Oracle Projects Control Account)
FCO,FCO,23/03/2017,6972-17,"284,960.12",ADAM SMITH INTERNATIONAL,Programme Spend (Oracle Projects Control Account)
FCO,FCO,13/03/2017,1198,"283,760.00",AXIOM INTERNATIONAL LTD,Programme Spend (Oracle Projects Control Account)
FCO,FCO,01/03/2017,SIN006113,"282,917.09",RISK ADVISORY GROUP PLC,Programme Spend (Oracle Projects Control Account)
FCO,FCO,13/03/2017,6934-23,"277,304.65",ADAM SMITH INTERNATIONAL,Programme Spend (Oracle Projects Control Account)
FCO,FCO,03/03/2017,Q1-571,"275,008.19",TORCHLIGHT SOLUTIONS LTD,Programme Spend (Oracle Projects Control Account)
FCO,FCO,14/03/2017,1001016671,"272,732.53",BAE SYSTEMS APPLIED INTELLIGENCE LIMITED,Multiple Accounts
FCO,FCO,08/03/2017,3349,"271,189.84",NI CO OPERATION OVERSEAS NI CO LTD,Programme Spend (Oracle Projects Control Account)
FCO,FCO,10/03/2017,FEBRUARY17INVOICESFORFCOCONTRACT,"267,353.70",LONDON ENERGY,Electricity Non-Residential
FCO,FCO,22/03/2017,6060323,"258,541.85",FCO SERVICES,Assets Under Construction (Oracle PA Control Account)
FCO,FCO,21/03/2017,17/034,"258,396.84",GILBERT ASH LIMITED,Assets Under Construction (Oracle PA Control Account)
FCO,FCO,31/03/2017,003-T0002718-01APR17,"253,772.02",845 THIRD LP,Multiple Accounts
FCO,FCO,24/03/2017,3-15MAR17,"253,186.53",THE HALO TRUST,Programme Spend (Oracle Projects Control Account)
FCO,FCO,02/03/2017,HS104447,"253,136.54",MORSON HUMAN RESOURCES LTD,Residential Property Services
FCO,FCO,06/03/2017,40,"252,725.00",MOONSHOT CVE LTD,Programme Spend (Oracle Projects Control Account)
FCO,FCO,30/03/2017,6972-18,"251,834.99",ADAM SMITH INTERNATIONAL,Programme Spend (Oracle Projects Control Account)
FCO,FCO,03/03/2017,VAT206,"251,490.56",EUROPEAN CENTRE FOR MEDIUM,Protocol - General VAT Refunds to Other Organisations
FCO,FCO,23/03/2017,ONEDAGT0004938-21MAR17,"250,682.41",PLAZA TOWER LLC,Multiple Accounts
FCO,FCO,10/03/2017,1267,"250,000.00",COFFEY INTERNATIONAL DEVELOPMENT,Programme Spend (Oracle Projects Control Account)
FCO,FCO,02/03/2017,003-T0002718-01MAR17,"249,147.70",845 THIRD LP,Multiple Accounts
FCO,FCO,29/03/2017,Q1-591,"249,000.00",TORCHLIGHT SOLUTIONS LTD,Programme Spend (Oracle Projects Control Account)
FCO,FCO,15/03/2017,14-Mar-17,"247,854.24",NELSON LUXEMBOURG PROPRTY DEVLOPMT,Rental Payments - non residential
FCO,FCO,07/03/2017,6060072,"247,659.00",FCO SERVICES,IT/IS Consultancy
FCO,FCO,31/03/2017,28302453,"246,250.60",AECOM,Programme Spend (Oracle Projects Control Account)
FCO,FCO,07/03/2017,6060069,"244,640.65",FCO SERVICES,Assets Under Construction (Oracle PA Control Account)
FCO,FCO,22/03/2017,6060265,"243,919.55",FCO SERVICES,Residential Property Services
FCO,FCO,02/03/2017,95/2017,"240,737.01",IOM INTERNATIONAL ORG FOR MIGRATION,Programme Spend (Oracle Projects Control Account)
FCO,FCO,14/03/2017,1466,"238,719.13",OROSTREAM INTERNATIONAL CONTRACTS LTD,Assets Under Construction (Oracle PA Control Account)
FCO,FCO,27/03/2017,1001016935,"238,678.42",BAE SYSTEMS APPLIED INTELLIGENCE LIMITED,Multiple Accounts
FCO,FCO,15/03/2017,17/033,"237,790.65",GILBERT ASH LIMITED,Construction Project more than 10k
FCO,FCO,13/03/2017,359/002,"236,890.19",AFRICAN SKIES LTD,Programme Spend (Oracle Projects Control Account)
FCO,FCO,29/03/2017,17-Mar-17,"228,688.24",INTERNATIONAL RELIEF AND DEVELOPMENT,Programme Spend (Oracle Projects Control Account)
FCO,FCO,31/03/2017,90288211,"228,120.00",BRITISH COUNCIL,Programme Spend (Oracle Projects Control Account)
FCO,FCO,24/03/2017,2,"227,729.05",THE HALO TRUST,Programme Spend (Oracle Projects Control Account)
FCO,FCO,29/03/2017,F014346,"223,350.00",S MACNEILLIE & SON LTD,Assets Under Construction (Oracle PA Control Account)
FCO,FCO,10/03/2017,EL_URSSAFPARISJAN17_230217,"220,123.14",URSSAF,Multiple Accounts
FCO,FCO,02/03/2017,6060022,"220,000.00",FCO SERVICES,Assets Under Construction (Oracle PA Control Account)
FCO,FCO,22/03/2017,EL_URSSAFPARISFEB17_200317,"219,732.32",URSSAF,Multiple Accounts
FCO,FCO,28/03/2017,R07022-23MAR17,"219,022.00",OXFAM,Programme Spend (Oracle Projects Control Account)
FCO,FCO,01/03/2017,3881104885,"216,864.10",COMPUTACENTER UK LTD,Assets Under Construction (Oracle PA Control Account)
FCO,FCO,24/03/2017,1472,"214,700.00",OROSTREAM INTERNATIONAL CONTRACTS LTD,"Purchase of Furniture, Fittings and Domestic Appliances"
FCO,FCO,17/03/2017,CPG/1275/2016-17MAR17,"213,442.03",THE HALO TRUST,Programme Spend (Oracle Projects Control Account)
FCO,FCO,29/03/2017,29-Mar-17,"213,350.07",COUNCIL OF THE EUROPEAN UNION,Interpreter Fees
FCO,FCO,10/03/2017,560,"210,120.37",AKTIS STRATEGY,Programme Spend (Oracle Projects Control Account)
FCO,FCO,29/03/2017,24-Mar-17,"202,284.00",CENTRE FOR HUMANITARIAN DIALOGUE,Programme Spend (Oracle Projects Control Account)
FCO,FCO,22/03/2017,17-Mar-17,"200,735.32",SINO-US UNITED METLIFE INSURANCE COMPANY LIMITED BEIJING BRANCH,Multiple Accounts
FCO,FCO,10/03/2017,17002069AARFDOPBL00531,"200,000.00",INTERNATIONAL COMMITTEE OF THE RED CROSS,Programme Spend (Oracle Projects Control Account)
FCO,FCO,27/03/2017,6060448,"200,000.00",FCO SERVICES,Assets Under Construction (Oracle PA Control Account)
FCO,FCO,07/03/2017,6060071,"199,476.50",FCO SERVICES,Specialist Contractors
FCO,FCO,29/03/2017,6883-30,"198,972.85",ADAM SMITH INTERNATIONAL,Programme Spend (Oracle Projects Control Account)
FCO,FCO,01/03/2017,GSP30776,"198,600.00",DE LA RUE INTERNATIONAL LTD TA DE LA RUE IDENTITY SYSTEMS,Passport Stationery - Emergency Travel Documents (ETDs)
FCO,FCO,02/03/2017,JX57462,"196,850.00",VODAFONE LTD,Information Systems Maintenance
FCO,FCO,15/03/2017,AMMN/032017,"194,833.86",KOIZA INTERNATIONAL LTD,"Purchase of Furniture, Fittings and Domestic Appliances"
FCO,FCO,03/03/2017,Q1-569,"194,170.11",TORCHLIGHT SOLUTIONS LTD,Programme Spend (Oracle Projects Control Account)
FCO,FCO,30/03/2017,3881137156,"193,078.79",COMPUTACENTER UK LTD,Multiple Accounts
FCO,FCO,03/03/2017,NB/16/1,"192,547.92",AFGHAN KNOWLEDGE SOLUTION,Programme Spend (Oracle Projects Control Account)
FCO,FCO,09/03/2017,1612-G150-307,"192,467.27",OVERSEAS SUPPLY SERVICES LTD,Estates Management Services
FCO,FCO,31/03/2017,12,"189,570.94",TECH HUB SAL,Programme Spend (Oracle Projects Control Account)
FCO,FCO,03/03/2017,VAT208,"189,353.99",EUROPEAN MOLECULAR BIOLOGY LABORATORY,Protocol - General VAT Refunds to Other Organisations
FCO,FCO,13/03/2017,6060141,"186,846.00",FCO SERVICES,Property Maintenance Overseas Non Residential
FCO,FCO,09/03/2017,28-Feb-17,"186,747.41",CATHOLIC RELIEF SERVICES,Programme Spend (Oracle Projects Control Account)
FCO,FCO,09/03/2017,17/03-002,"185,500.00",INTERNTL COMMISSION MISSING PERSONS,Programme Spend (Oracle Projects Control Account)
FCO,FCO,27/03/2017,WCT_003_23/03/17,"185,000.00",EXTRAORDINARY CHAMBER IN THE COURT OF CAMBODIA,Programme Spend (Oracle Projects Control Account)
FCO,FCO,06/03/2017,17/026,"184,547.89",GILBERT ASH LIMITED,Assets Under Construction (Oracle PA Control Account)
FCO,FCO,22/03/2017,6060334,"183,692.00",FCO SERVICES,Assets Under Construction (Oracle PA Control Account)
FCO,FCO,14/03/2017,UK301146,"183,110.46",GARDA WORLD LTD,UK Guarding Contracts Overseas
FCO,FCO,24/03/2017,5501389651,"182,796.00",KPMG LLP,Training Courses
FCO,FCO,30/03/2017,1481,"182,704.32",OROSTREAM INTERNATIONAL CONTRACTS LTD,Assets Under Construction (Oracle PA Control Account)
FCO,FCO,10/03/2017,LOC\17\179,"180,841.66",THE ASIA FOUNDATION,Programme Spend (Oracle Projects Control Account)
FCO,FCO,01/03/2017,2.60E+12,"180,387.99",CAPGEMINI UK PLC,IT/IS Consultancy
FCO,FCO,14/03/2017,2.60E+12,"180,387.99",CAPGEMINI UK PLC,IT/IS Consultancy
FCO,FCO,29/03/2017,2.60E+12,"180,387.99",CAPGEMINI UK PLC,IT/IS Consultancy
FCO,FCO,13/03/2017,1702-G150-329,"179,062.03",OVERSEAS SUPPLY SERVICES LTD,Estates Management Services
FCO,FCO,30/03/2017,CVE02/17,"177,173.42",STABILISATION NETWORK,Programme Spend (Oracle Projects Control Account)
FCO,FCO,20/03/2017,BERLINSALARIESMAR2017,"176,024.71",FIEDLER AND RANDEL STEUERBERATER,Multiple Accounts
FCO,FCO,22/03/2017,ADL00251,"175,078.85",AEGIS DEFENCE SERVICES LTD,Multiple Accounts
FCO,FCO,15/03/2017,CON-FCO-17-007,"174,930.84",RA INITERNATIONAL,Programme Spend (Oracle Projects Control Account)
FCO,FCO,03/03/2017,17010001,"173,818.59",TRANT ENGINEERING LTD,Assets Under Construction (Oracle PA Control Account)
FCO,FCO,22/03/2017,6060256,"173,529.38",FCO SERVICES,Air Freight Dip Bags - Freight & Clearance Charges
FCO,FCO,06/03/2017,7,"171,003.66",TECH HUB SAL,Programme Spend (Oracle Projects Control Account)
FCO,FCO,27/03/2017,AFK998Z-Q1RENTFY1718-ESDAFK998Z-24MAR17,"168,417.68",EMBASSY OF BULGARIA,Rental Payments - non residential
FCO,FCO,16/03/2017,90287018,"168,326.25",BRITISH COUNCIL,Programme Spend (Oracle Projects Control Account)
FCO,FCO,16/03/2017,3,"167,500.00",BBC MEDIA ACTION,Programme Spend (Oracle Projects Control Account)
FCO,FCO,01/03/2017,20170200039,"167,262.86",TORRE ESPACIO CASTELLANA SAU,Rental Payments - non residential
FCO,FCO,21/03/2017,10,"165,140.00",TECH HUB SAL,Programme Spend (Oracle Projects Control Account)
FCO,FCO,30/03/2017,193/2017,"163,719.88",IOM INTERNATIONAL ORG FOR MIGRATION,Programme Spend (Oracle Projects Control Account)
FCO,FCO,17/03/2017,16-Mar-17,"163,455.42",LIONS HEAD GLOBAL PARTNERS,Programme Spend (Oracle Projects Control Account)
FCO,FCO,06/03/2017,IUK01035820,"162,926.00",CONTROL RISKS GROUP,UK Mobile Guarding Contract overseas
FCO,FCO,17/03/2017,16032017,"161,828.88",BBC MEDIA ACTION,Programme Spend (Oracle Projects Control Account)
FCO,FCO,27/03/2017,CFER FEB 2017,"161,571.52",H M EXCHEQUER,CFER Payments to The Exchequer (CSC Use Only)
FCO,FCO,01/03/2017,271016,"161,171.16",TRESOR PUBLIC,Multiple Accounts
FCO,FCO,24/03/2017,1-27JAN17,"160,631.97",NATIONAL DEMOCRATIC INSTITUTE,Programme Spend (Oracle Projects Control Account)
FCO,FCO,29/03/2017,CH_01_280317,"159,705.73",BANCO CORPBANCA COLOMBIA SA,Assets Under Construction (Oracle PA Control Account)
FCO,FCO,20/03/2017,5501388824,"159,435.00",KPMG LLP,Training Courses
FCO,FCO,14/03/2017,"10,851,081,108,310,800,000","159,174.50",BIDWELLS,Rental Payments - non residential
FCO,FCO,28/03/2017,3780053331,"158,974.47",COMPUTACENTER UK LTD,IT/IS Consultancy
FCO,FCO,13/03/2017,6171-POE-HKN,"158,861.61",ISS FACILITY SERVICES LTD FCO OP - POE,Multiple Accounts
FCO,FCO,08/03/2017,CON-FCO-16-004,"158,804.40",RA INITERNATIONAL,Programme Spend (Oracle Projects Control Account)
FCO,FCO,03/03/2017,1453,"158,424.10",OROSTREAM INTERNATIONAL CONTRACTS LTD,Assets Under Construction (Oracle PA Control Account)
FCO,FCO,22/03/2017,ADL00255,"158,388.09",AEGIS DEFENCE SERVICES LTD,Multiple Accounts
FCO,FCO,15/03/2017,2,"157,501.00",PEACEFUL CHANGE INITIATIVE,Programme Spend (Oracle Projects Control Account)
FCO,FCO,09/03/2017,LAP-LEV/2016/0037,"156,150.45",LAPIS MIDDLE EAST AND AFRICA FZ LLC,Programme Spend (Oracle Projects Control Account)
FCO,FCO,03/03/2017,286,"155,523.30",INDEPENDENT DIPLOMATS,Programme Spend (Oracle Projects Control Account)
FCO,FCO,21/03/2017,FCOACPJAN2017,"155,511.21",CABINET OFFICE,Early Retirement Costs (Pre VES)
FCO,FCO,17/03/2017,1483197,"153,170.00",CRANFIELD UNIVERSITY,Programme Spend (Oracle Projects Control Account)
FCO,FCO,14/03/2017,6060151,"152,450.00",FCO SERVICES,Assets Under Construction (Oracle PA Control Account)
FCO,FCO,23/03/2017,300,"152,423.61",INDEPENDENT DIPLOMATS,Programme Spend (Oracle Projects Control Account)
FCO,FCO,13/03/2017,10-Mar-17,"151,000.00",OFFICE OF THE HIGH COMMISSIONER FOR HUMAN RIGHTS OHCHR,Programme Spend (Oracle Projects Control Account)
FCO,FCO,14/03/2017,08-Mar-17,"150,875.00",MEDAFCO DEVELOPPEMENT,Programme Spend (Oracle Projects Control Account)
FCO,FCO,28/03/2017,27-Mar-17,"150,658.29",OSCAR DARIO JARAMILLO DUQUE,Assets Under Construction (Oracle PA Control Account)
FCO,FCO,06/03/2017,6059488,"150,000.00",FCO SERVICES,Assets Under Construction (Oracle PA Control Account)
FCO,FCO,23/03/2017,80010804,"150,000.00",QUEENS UNIVERSITY BELFAST,Programme Spend (Oracle Projects Control Account)
FCO,FCO,30/03/2017,6060551,"150,000.00",FCO SERVICES,Security: Works Residential
FCO,FCO,23/03/2017,6972-0001-14,"147,631.63",ADAM SMITH INTERNATIONAL,Programme Spend (Oracle Projects Control Account)
FCO,FCO,22/03/2017,6060230,"147,039.09",FCO SERVICES,Assets Under Construction (Oracle PA Control Account)
FCO,FCO,29/03/2017,105351,"145,903.89",SECURITY SERVICES GROUP,Assets Under Construction (Oracle PA Control Account)
FCO,FCO,01/03/2017,DFID-PAK-230217,"145,158.40",THE GLOBAL INITIATIVE AGAINST TRANSNATIONAL ORGANIZED CRIME,Programme Spend (Oracle Projects Control Account)
FCO,FCO,13/03/2017,6179-POE-PHM,"144,701.06",ISS FACILITY SERVICES LTD FCO OP - POE,Multiple Accounts
FCO,FCO,27/03/2017,1204,"144,174.00",AXIOM INTERNATIONAL LTD,Programme Spend (Oracle Projects Control Account)
FCO,FCO,16/03/2017,6934-24/1,"142,660.15",ADAM SMITH INTERNATIONAL,Programme Spend (Oracle Projects Control Account)
FCO,FCO,06/03/2017,6060055,"141,100.20",FCO SERVICES,Construction Project more than 10k
FCO,FCO,06/03/2017,6059231,"140,800.00",FCO SERVICES,Assets Under Construction (Oracle PA Control Account)
FCO,FCO,23/03/2017,INV15,"140,110.00",BBC MEDIA ACTION,Programme Spend (Oracle Projects Control Account)
FCO,FCO,20/03/2017,90287191,"139,802.90",BRITISH COUNCIL ALGERIA,Programme Spend (Oracle Projects Control Account)
FCO,FCO,01/03/2017,17-Feb-17,"139,291.50",MAXWELL STAMP PLC,Programme Spend (Oracle Projects Control Account)
FCO,FCO,22/03/2017,1001016796,"138,652.65",BAE SYSTEMS APPLIED INTELLIGENCE LIMITED,Specialist Contractors
FCO,FCO,17/03/2017,990/003,"136,879.83",AFRICAN SKIES LTD,Local Guards
FCO,FCO,13/03/2017,6174-POE-JAT,"135,065.94",ISS FACILITY SERVICES LTD FCO OP - POE,Multiple Accounts
FCO,FCO,15/03/2017,I-HB-06.03.2017-2,"134,743.19",PICKFORDS MOVE MANAGEMENT LTD,Heavy Baggage
FCO,FCO,22/03/2017,1001016807,"133,776.41",BAE SYSTEMS APPLIED INTELLIGENCE LIMITED,Specialist Contractors
FCO,FCO,02/03/2017,LAV015520,"132,766.05",GENERALI ESTATE SPA,Multiple Accounts
FCO,FCO,17/03/2017,11660,"132,480.90",DIPLOMATIC MISSION SUPPLIES LTD,"Purchase of Furniture, Fittings and Domestic Appliances"
FCO,FCO,09/03/2017,CPG/1275/2016-09MAR17,"131,153.91",THE HALO TRUST,Programme Spend (Oracle Projects Control Account)
FCO,FCO,14/03/2017,703/1034/95038,"130,712.67",SECUREX AGENCIES LTD,Staff and Other Advances AP Control (Oracle Ap Control Account)
FCO,FCO,06/03/2017,1455,"130,251.60",OROSTREAM INTERNATIONAL CONTRACTS LTD,Construction Project more than 10k
FCO,FCO,06/03/2017,2032017,"129,735.01",BBC MEDIA ACTION,Programme Spend (Oracle Projects Control Account)
FCO,FCO,31/03/2017,569,"129,533.98",AKTIS STRATEGY,Programme Spend (Oracle Projects Control Account)
FCO,FCO,01/03/2017,6059937,"127,545.47",FCO SERVICES,Estates Management Services
FCO,FCO,06/03/2017,6059363,"127,327.56",FCO SERVICES,Assets Under Construction (Oracle PA Control Account)
FCO,FCO,31/03/2017,21072016,"126,613.91",BBC MEDIA ACTION,Programme Spend (Oracle Projects Control Account)
FCO,FCO,13/03/2017,1260,"126,588.65",COFFEY INTERNATIONAL DEVELOPMENT,Programme Spend (Oracle Projects Control Account)
FCO,FCO,08/03/2017,90284134,"126,070.00",BRITISH COUNCIL,Programme Spend (Oracle Projects Control Account)
FCO,FCO,24/03/2017,15-192,"124,939.12",GLOBAL PARTNERS GOVERNANCE PRACTICE LTD,Programme Spend (Oracle Projects Control Account)
FCO,FCO,30/03/2017,2017/0003,"124,861.97",COMITATO INTERNAZIONALE PER LO SVILUPPO DEI POPOLI  CISP,Programme Spend (Oracle Projects Control Account)
FCO,FCO,24/03/2017,15-191,"124,232.97",GLOBAL PARTNERS GOVERNANCE PRACTICE LTD,Programme Spend (Oracle Projects Control Account)
FCO,FCO,01/03/2017,6059944,"123,750.00",FCO SERVICES,Assets Under Construction (Oracle PA Control Account)
FCO,FCO,06/03/2017,1002/003,"123,633.39",AFRICAN SKIES LTD,Local Guards
FCO,FCO,30/03/2017,152/2017,"123,502.42",IOM INTERNATIONAL ORG FOR MIGRATION,Programme Spend (Oracle Projects Control Account)
FCO,FCO,10/03/2017,0217_HP-46,"123,309.96",INTERSERVE FM LTD,Construction Project more than 10k
FCO,FCO,30/03/2017,151/2017,"122,430.12",IOM INTERNATIONAL ORG FOR MIGRATION,Programme Spend (Oracle Projects Control Account)
FCO,FCO,29/03/2017,250016110,"122,400.00",CABINET OFFICE,Pension Service Charge
FCO,FCO,29/03/2017,282931,"122,373.30",CROSS MATCH TECHNOLOGIES GMBH,Programme Spend (Oracle Projects Control Account)
FCO,FCO,28/03/2017,UKV002A-Q1RENTFY1718-ESDUKV002A-27MAR17,"122,102.81",NATIONAL HOTEL COMPLEX,Rental Payments - non residential
FCO,FCO,29/03/2017,6967-0002-11,"121,616.08",ADAM SMITH INTERNATIONAL,Programme Spend (Oracle Projects Control Account)
FCO,FCO,13/03/2017,6167-POE-CHP,"121,008.70",ISS FACILITY SERVICES LTD FCO OP - POE,Multiple Accounts
FCO,FCO,06/03/2017,18005,"120,777.86",LANGUAGE SERVICES DIRECT,Language Tuition: Essential
FCO,FCO,20/03/2017,1354706978,"120,463.03",PRICEWATERHOUSE COOPERS LLP,Programme Spend (Oracle Projects Control Account)
FCO,FCO,22/03/2017,4202/17,"120,286.31",HOTELLINE FOR TOURISTIC INVESTMENT LTD,Multiple Accounts
FCO,FCO,16/03/2017,7484146,"118,933.00",DEFENCE BUSINESS SERVICES FINANCE,Misc Security Payments
FCO,FCO,02/03/2017,111937,"118,898.60",RIDGE AND PARTNERS,Assets Under Construction (Oracle PA Control Account)
FCO,FCO,31/03/2017,300317,"118,697.31",ACCOMODATION PROVIDER,Rental Payments - residential
FCO,FCO,31/03/2017,6060607,"118,437.00",FCO SERVICES,Assets Under Construction (Oracle PA Control Account)
FCO,FCO,27/03/2017,468354,"118,100.83",VODAFONE LTD CABLE AND WIRELESS UK,Telephone line and equipment rental charges
FCO,FCO,30/03/2017,1238,"117,264.17",COFFEY INTERNATIONAL DEVELOPMENT,Programme Spend (Oracle Projects Control Account)
FCO,FCO,24/03/2017,DGL06/16,"116,243.79",STABILISATION NETWORK,Programme Spend (Oracle Projects Control Account)
FCO,FCO,22/03/2017,SLINV/00012556,"116,148.87",BUCKINGHAM PALACE SERVICES,GH/VIP Grant in Aid
FCO,FCO,29/03/2017,STR/170008,"115,130.00",STRATAGEM CONSULTING,Programme Spend (Oracle Projects Control Account)
FCO,FCO,29/03/2017,STR/160041A,"115,130.00",STRATAGEM CONSULTING,Programme Spend (Oracle Projects Control Account)
FCO,FCO,28/03/2017,24-Mar-17,"114,818.49",OXFAM BRASIL,Programme Spend (Oracle Projects Control Account)
FCO,FCO,31/03/2017,NJ_01_310317,"114,491.75",ICICI LOMBARD GENERAL INSURANCE COMPANY LIMITED,Staff and Other Advances AP Control (Oracle Ap Control Account)
FCO,FCO,14/03/2017,6120-VAR-AUC,"113,748.90",ISS FACILITY SERVICES LTD FCO OP,FM Interserve BES Maintenance
FCO,FCO,09/03/2017,R07022,"111,478.00",OXFAM,Programme Spend (Oracle Projects Control Account)
FCO,FCO,20/03/2017,3780052966,"110,330.76",COMPUTACENTER UK LTD,Assets Under Construction (Oracle PA Control Account)
FCO,FCO,01/03/2017,195319687,"109,437.64",E2V TECHNOLOGIES,Vehicle Maintenance
FCO,FCO,06/03/2017,195329920,"109,437.64",E2V TECHNOLOGIES,Vehicle Maintenance
FCO,FCO,30/03/2017,00/16-17,"108,268.51",CRIMINAL JUSTICE TASK FORCE - CJTF,Recharge Suspense Account (Oracle PA Control Account)
FCO,FCO,27/03/2017,NC_244_230317,"108,000.00",UNITED NATIONS,Programme Spend (Oracle Projects Control Account)
FCO,FCO,28/03/2017,574,"107,540.95",AKTIS STRATEGY,Programme Spend (Oracle Projects Control Account)
FCO,FCO,22/03/2017,1471,"107,079.93",OROSTREAM INTERNATIONAL CONTRACTS LTD,Construction Project more than 10k
FCO,FCO,08/03/2017,18708,"106,765.76",HEALIX INTERNATIONAL LTD,FCO Healthcare Scheme
FCO,FCO,17/03/2017,LEASEAGREEMENT-01MAR17,"106,343.73",ACCOMODATION PROVIDER,Rental Payments - residential
FCO,FCO,09/03/2017,LON-2017-11703,"106,335.00",NORTH HIGHLAND UK LTD,Specialist Contractors
FCO,FCO,16/03/2017,5,"106,053.41",AGA KHAN FOUNDATION AFGHANISTAN,Programme Spend (Oracle Projects Control Account)
FCO,FCO,24/03/2017,1001016859,"105,970.86",BAE SYSTEMS APPLIED INTELLIGENCE LIMITED,Specialist Contractors
FCO,FCO,13/03/2017,NB/17/4,"105,880.98",AFGHAN KNOWLEDGE SOLUTION,Programme Spend (Oracle Projects Control Account)
FCO,FCO,03/03/2017,NB/16/2A,"105,868.96",AFGHAN KNOWLEDGE SOLUTION,Programme Spend (Oracle Projects Control Account)
FCO,FCO,16/03/2017,WBD_001_14/03/17,"105,000.00",BBC WORLD SERVICE TRUST,Programme Spend (Oracle Projects Control Account)
FCO,FCO,10/03/2017,ALB/728/011,"104,887.20",ALBANY ASSOCIATES,Programme Spend (Oracle Projects Control Account)
FCO,FCO,17/03/2017,3780052870,"104,842.09",COMPUTACENTER UK LTD,Assets Under Construction (Oracle PA Control Account)
FCO,FCO,13/03/2017,134/03016,"104,524.02",SEARCH FOR COMMON GROUND,Programme Spend (Oracle Projects Control Account)
FCO,FCO,03/03/2017,3341,"104,217.67",NI CO OPERATION OVERSEAS NI CO LTD,Programme Spend (Oracle Projects Control Account)
FCO,FCO,22/03/2017,9199,"103,776.00",CORPORATE TELEVISION NETWORK LTD,Programme Spend (Oracle Projects Control Account)
FCO,FCO,15/03/2017,1278,"103,323.27",COFFEY INTERNATIONAL DEVELOPMENT,Programme Spend (Oracle Projects Control Account)
FCO,FCO,14/03/2017,SIN000012,"103,000.00",MARSHALL AID COMMERATION COMMISSION,Programme Spend (Oracle Projects Control Account)
FCO,FCO,17/03/2017,PI31617,"102,654.58",PEXI INC,Assets Under Construction (Oracle PA Control Account)
FCO,FCO,06/03/2017,6059902,"102,514.81",FCO SERVICES,Assets Under Construction (Oracle PA Control Account)
FCO,FCO,23/03/2017,Jan-17,"102,363.17",ETANA,Programme Spend (Oracle Projects Control Account)
FCO,FCO,17/03/2017,LEASEAGREEMENT01MAR17,"102,253.59",ACCOMODATION PROVIDER,Rental Payments - residential
FCO,FCO,03/03/2017,7082-03,"101,595.41",ADAM SMITH INTERNATIONAL,Programme Spend (Oracle Projects Control Account)
FCO,FCO,02/03/2017,6060024,"100,000.00",FCO SERVICES,Assets Under Construction (Oracle PA Control Account)
FCO,FCO,10/03/2017,LOSI33559,"100,000.00",VISIT BRITAIN,Programme Spend (Oracle Projects Control Account)
FCO,FCO,14/03/2017,6.23E+11,"100,000.00",DEPARTMENT FOR INTERNATIONAL TRADE,Programme Spend (Oracle Projects Control Account)
FCO,FCO,17/03/2017,CSSOUK2,"100,000.00",COMMONWEALTH SECRETARIAT,Programme Spend (Oracle Projects Control Account)
FCO,FCO,21/03/2017,13-Mar-17,"100,000.00",INTERNATIONAL FOUNDATION FOR ELECTORAL SYSTEMS(IFES),Programme Spend (Oracle Projects Control Account)
FCO,FCO,16/03/2017,7485729,"99,633.00",DEFENCE BUSINESS SERVICES FINANCE,Misc Security Payments
FCO,FCO,16/03/2017,563,"98,068.00",AKTIS STRATEGY,Programme Spend (Oracle Projects Control Account)
FCO,FCO,29/03/2017,24-Mar-17,"97,952.67",INTERNATIONAL CENTRE FOR MIGRATION POLICY DEVELOPMENT,Programme Spend (Oracle Projects Control Account)
FCO,FCO,16/03/2017,HMY_002/2017-13MAR17,"97,785.34",ARK GROUP DMCC,Programme Spend (Oracle Projects Control Account)
FCO,FCO,28/03/2017,1597107,"97,657.52",BDO LLP,Programme Spend (Oracle Projects Control Account)
FCO,FCO,01/03/2017,HT-INV-2/267,"97,138.46",AL HUGAYET GROUP,Rental Payments - non residential
FCO,FCO,24/03/2017,16-Mar-17,"97,026.99",CATHOLIC RELIEF SERVICES,Programme Spend (Oracle Projects Control Account)
FCO,FCO,31/03/2017,BHR_002/2017,"96,955.50",ARK GROUP DMCC,Programme Spend (Oracle Projects Control Account)
FCO,FCO,28/03/2017,ALB/728/012,"96,735.04",ALBANY ASSOCIATES,Programme Spend (Oracle Projects Control Account)
FCO,FCO,30/03/2017,6060431,"96,729.96",FCO SERVICES,Property Maintenance Overseas Non Residential
FCO,FCO,27/03/2017,DRC-516-679-03,"96,729.55",DANISH REFUGEE COUNCIL,Programme Spend (Oracle Projects Control Account)
FCO,FCO,20/03/2017,256MDR,"96,405.53",GREAT BRITAIN-CHINA CENTRE,Programme Spend (Oracle Projects Control Account)
FCO,FCO,24/03/2017,7633413,"96,071.63",SECURITAS AS,Assets Under Construction (Oracle PA Control Account)
FCO,FCO,06/03/2017,EL_PARISHUMANISJAN17_260217,"95,852.51",HUMANIS,Overseas Tax And Social Security
FCO,FCO,16/03/2017,3780052826,"95,584.62",COMPUTACENTER UK LTD,Assets Under Construction (Oracle PA Control Account)
FCO,FCO,03/03/2017,17,"95,209.76",THE SHAIKH GROUP,Programme Spend (Oracle Projects Control Account)
FCO,FCO,07/03/2017,1632736,"94,580.63",ALBANY ASSOCIATES,Programme Spend (Oracle Projects Control Account)
FCO,FCO,20/03/2017,LE STAFF SOCIAL SECURITY MARCH 2017,"94,473.21",SEGURIDAD SOCIAL,Multiple Accounts
FCO,FCO,20/03/2017,16-Mar-17,"94,281.16",ADYAN FOUNDATION,Programme Spend (Oracle Projects Control Account)
FCO,FCO,07/03/2017,VAT207,"94,241.47",INTERNATIONAL FINANCE CORPORATION,Protocol - General VAT Refunds to Other Organisations
FCO,FCO,24/03/2017,IN145788111,"94,085.65",EDENRED,Consolidated Volunteer Contribution
FCO,FCO,16/03/2017,3780052950,"93,819.49",COMPUTACENTER UK LTD,Information Systems Maintenance
FCO,FCO,06/03/2017,02-Mar-17,"93,702.17",ADYAN FOUNDATION,Programme Spend (Oracle Projects Control Account)
FCO,FCO,17/03/2017,SINV000668,"93,661.00",IISS - INTERNATIONAL INSTITUTE FOR STRATEGIC STUDIES,Programme Spend (Oracle Projects Control Account)
FCO,FCO,03/03/2017,SOOO4942,"93,544.00",SCOTTISH POLICE SERVICES AUTHORITY,Programme Spend (Oracle Projects Control Account)
FCO,FCO,14/03/2017,6060150,"93,223.97",FCO SERVICES,Unscheduled repairs to building infrastructure
FCO,FCO,02/03/2017,23FEB17A,"92,503.81",NORWEGIAN CHURCH AID,Programme Spend (Oracle Projects Control Account)
FCO,FCO,31/03/2017,20170330001,"92,300.00",AGILE BYTE LIMITED,IT/IS Consultancy
FCO,FCO,22/03/2017,ALB/720/012,"92,205.65",ALBANY ASSOCIATES,Programme Spend (Oracle Projects Control Account)
FCO,FCO,29/03/2017,1136244,"91,548.28",HOME OFFICE,Recharge Suspense Account (Oracle PA Control Account)
FCO,FCO,09/03/2017,LAP-LEV/2016/0044,"91,472.45",LAPIS MIDDLE EAST AND AFRICA FZ LLC,Programme Spend (Oracle Projects Control Account)
FCO,FCO,02/03/2017,ALB/728/010,"91,349.19",ALBANY ASSOCIATES,Programme Spend (Oracle Projects Control Account)
FCO,FCO,30/03/2017,16633,"91,241.95",CONCEPT BUILDING SERVICES SOUTHERN LTD,Assets Under Construction (Oracle PA Control Account)
FCO,FCO,16/03/2017,4,"90,563.00",AGA KHAN FOUNDATION AFGHANISTAN,Programme Spend (Oracle Projects Control Account)
FCO,FCO,13/03/2017,6169-POE-CHS,"90,534.39",ISS FACILITY SERVICES LTD FCO OP - POE,Multiple Accounts
FCO,FCO,13/03/2017,20170302-001,"90,329.00",SOVEREIGN GLOBAL,Online Content
FCO,FCO,23/03/2017,10118128,"90,310.60",PA CONSULTING GROUP,Specialist Contractors
FCO,FCO,29/03/2017,GB-HQ-SO03603,"89,617.29",GLOBE MOTORS,Recharge Suspense Account (Oracle PA Control Account)
FCO,FCO,29/03/2017,GB-HQ-SO03604,"89,617.29",GLOBE MOTORS,Recharge Suspense Account (Oracle PA Control Account)
FCO,FCO,15/03/2017,RENT/010417-310318,"89,593.23",ACCOMODATION PROVIDER,Rental Payments - residential
FCO,FCO,22/03/2017,3881127127,"89,260.28",COMPUTACENTER UK LTD,Assets Under Construction (Oracle PA Control Account)
FCO,FCO,17/03/2017,S017108PP,"89,205.00",S MACNEILLIE & SON LTD,Assets Under Construction (Oracle PA Control Account)
FCO,FCO,29/03/2017,3881135330,"89,155.68",COMPUTACENTER UK LTD,Assets Under Construction (Oracle PA Control Account)
FCO,FCO,10/03/2017,DDGHMALY001-02MAR17,"88,344.00",DANISH DEMINING GROUP,Programme Spend (Oracle Projects Control Account)
FCO,FCO,01/03/2017,20087829,"88,100.00",GARTNER UK LIMITED,Professional Subscriptions
FCO,FCO,29/03/2017,27MAR17A,"87,528.91",INTERNATIONAL CENTRE FOR MIGRATION POLICY DEVELOPMENT,Programme Spend (Oracle Projects Control Account)
FCO,FCO,29/03/2017,3353,"87,438.92",NI CO OPERATION OVERSEAS NI CO LTD,Programme Spend (Oracle Projects Control Account)
FCO,FCO,20/03/2017,F014132PP,"87,296.17",S MACNEILLIE & SON LTD,Security: Works Residential
FCO,FCO,20/03/2017,F014133PP,"87,296.17",S MACNEILLIE & SON LTD,Security: Works Residential
FCO,FCO,31/03/2017,6060623,"87,281.35",FCO SERVICES,Construction Project more than 10k
FCO,FCO,23/03/2017,91751425,"87,170.67",HYDROGRAPHIC OFFICE,Programme Spend (Oracle Projects Control Account)
FCO,FCO,30/03/2017,6060505,"86,680.65",FCO SERVICES,IT/IS Consultancy
FCO,FCO,08/03/2017,PF00079817,"86,213.81",PETROAUTOS S A,Recharge Suspense Account (Oracle PA Control Account)
FCO,FCO,06/03/2017,200401572,"85,741.00",QUANTUM COMMUNICATIONS INTERNATIONAL LTD,Programme Spend (Oracle Projects Control Account)
FCO,FCO,20/03/2017,SSI00114,"85,618.00",AFGHANAID,Programme Spend (Oracle Projects Control Account)
FCO,FCO,02/03/2017,6060026,"85,318.00",FCO SERVICES,Assets Under Construction (Oracle PA Control Account)
FCO,FCO,14/03/2017,L/IQ06876,"85,237.25",MOVE ONE,Freight & Customs Clearance Charges
FCO,FCO,15/03/2017,FOR008,"85,010.83",AFGHAN CONNECTION,Programme Spend (Oracle Projects Control Account)
FCO,FCO,08/03/2017,3772,"84,832.39",EXCLUSIVE AUTOMOTIVE GROUP,Assets Under Construction (Oracle PA Control Account)
FCO,FCO,17/03/2017,1286,"83,947.45",COFFEY INTERNATIONAL DEVELOPMENT,Programme Spend (Oracle Projects Control Account)
FCO,FCO,28/03/2017,ASAM_09_270317,"83,909.12",SIGINMACILAR GOCMENLERLE DAYANISMA,Programme Spend (Oracle Projects Control Account)
FCO,FCO,22/03/2017,21-Mar-17,"83,891.67",CHINA INTERNATIONAL ENGINEERING CONSULTING CORPORATION,Programme Spend (Oracle Projects Control Account)
FCO,FCO,27/03/2017,3780053244,"83,208.00",COMPUTACENTER UK LTD,IT/IS Consultancy
FCO,FCO,06/03/2017,5236,"83,140.00",MINIMAL RISK CONSULTANCY LTD,UK Guarding Contracts Overseas
FCO,FCO,28/03/2017,5254,"83,067.50",MINIMAL RISK CONSULTANCY LTD,UK Guarding Contracts Overseas
FCO,FCO,28/03/2017,1136307,"82,993.00",HOME OFFICE,Consular Crisis Expenditure
FCO,FCO,28/03/2017,3780053299,"82,563.29",COMPUTACENTER UK LTD,Assets Under Construction (Oracle PA Control Account)
FCO,FCO,03/03/2017,253MDR,"81,682.13",GREAT BRITAIN-CHINA CENTRE,Programme Spend (Oracle Projects Control Account)
FCO,FCO,28/03/2017,1136308,"81,535.00",HOME OFFICE,Specialist Contractors
FCO,FCO,28/03/2017,170323INV/141,"81,531.33",COMMONWEALTH PARLIAMENTARY ASSOCIATION,Programme Spend (Oracle Projects Control Account)
FCO,FCO,17/03/2017,S017118PP,"81,464.40",S MACNEILLIE & SON LTD,Assets Under Construction (Oracle PA Control Account)
FCO,FCO,14/03/2017,UNITEDKINGDOMCONTRIBUTION-24NOV16,"81,286.92",CCAMLR,Programme Spend (Oracle Projects Control Account)
FCO,FCO,31/03/2017,1136462,"80,843.28",HOME OFFICE,Recharge Suspense Account (Oracle PA Control Account)
FCO,FCO,15/03/2017,15-Mar-17,"80,645.95",ADP,Multiple Accounts
FCO,FCO,08/03/2017,353400166,"80,492.50",ICF CONSULTING LTD,Programme Spend (Oracle Projects Control Account)
FCO,FCO,06/03/2017,300064405,"80,179.00",DFID DEPT INTERNATIONAL DEVELOPMENT,Programme Spend (Oracle Projects Control Account)
FCO,FCO,09/03/2017,IRAQCSSF20170003,"80,000.00",NATIONAL DEMOCRATIC INSTITUTE,Programme Spend (Oracle Projects Control Account)
FCO,FCO,29/03/2017,MARSEC1415NDP1203-27MAR17,"80,000.00",UNDP MULTI PARTNER TRUST FUND OFFICE,Programme Spend (Oracle Projects Control Account)
FCO,FCO,31/03/2017,6060601,"80,000.00",FCO SERVICES,Assets Under Construction (Oracle PA Control Account)
FCO,FCO,30/03/2017,6060567,"79,848.45",FCO SERVICES,"Purchase of Furniture, Fittings and Domestic Appliances"
FCO,FCO,24/03/2017,2017-0063,"79,799.71",STOOF INTERNATIONAL VERTRIEBSGESELLSCHAFT MBH,Assets Under Construction (Oracle PA Control Account)
FCO,FCO,24/03/2017,2017-0064,"79,799.71",STOOF INTERNATIONAL VERTRIEBSGESELLSCHAFT MBH,Assets Under Construction (Oracle PA Control Account)
FCO,FCO,24/03/2017,2017-0066,"79,799.71",STOOF INTERNATIONAL VERTRIEBSGESELLSCHAFT MBH,Assets Under Construction (Oracle PA Control Account)
FCO,FCO,24/03/2017,2017-0065,"79,799.71",STOOF INTERNATIONAL VERTRIEBSGESELLSCHAFT MBH,Assets Under Construction (Oracle PA Control Account)
FCO,FCO,16/03/2017,29134/SC02167003,"79,671.94",MSECURE LIMITED,Assets Under Construction (Oracle PA Control Account)
FCO,FCO,17/03/2017,S016482PP,"79,458.00",S MACNEILLIE & SON LTD,Assets Under Construction (Oracle PA Control Account)
FCO,FCO,29/03/2017,1136247,"79,386.31",HOME OFFICE,Recharge Suspense Account (Oracle PA Control Account)
FCO,FCO,29/03/2017,22/03/2017,"79,325.13",NGO MEDIA REFORMS CENTRE,Programme Spend (Oracle Projects Control Account)
FCO,FCO,07/03/2017,CAA015024,"78,975.00",CROWN AGENTS,Programme Spend (Oracle Projects Control Account)
FCO,FCO,28/03/2017,46/201704,"78,428.12",LUZOMIX,Multiple Accounts
FCO,FCO,10/03/2017,250017473,"78,089.20",CABINET OFFICE,Training Courses
FCO,FCO,22/03/2017,UKGRANT2017,"78,000.00",INTERNATIONAL CODE OF CONDUCT FOR PRIVATE SECURITY SERVICE PROVIDERS ASSOCIATION,Programme Spend (Oracle Projects Control Account)
FCO,FCO,13/03/2017,6060112,"77,853.00",FCO SERVICES,Assets Under Construction (Oracle PA Control Account)
FCO,FCO,28/03/2017,FCO UK GPC MAR17 1,"77,851.95",THE ROYAL BANK OF SCOTLAND,Multiple Accounts
FCO,FCO,15/03/2017,6185-VAR-MAK,"77,628.07",ISS FACILITY SERVICES LTD FCO OP,Multiple Accounts
FCO,FCO,15/03/2017,E-HB-06.03.2017-2,"77,133.53",PICKFORDS MOVE MANAGEMENT LTD,Heavy Baggage
FCO,FCO,22/03/2017,F014216F,"77,125.28",S MACNEILLIE & SON LTD,Assets Under Construction (Oracle PA Control Account)
FCO,FCO,15/03/2017,12/16-17,"76,946.83",CRIMINAL JUSTICE TASK FORCE - CJTF,Recharge Suspense Account (Oracle PA Control Account)
FCO,FCO,16/03/2017,140317,"76,670.21",BBC MEDIA ACTION,Programme Spend (Oracle Projects Control Account)
FCO,FCO,02/03/2017,6800112193,"76,602.69",MAYORS OFFICE FOR POLICING AND CRIME MOPC,Programme Spend (Oracle Projects Control Account)
FCO,FCO,27/03/2017,SIL003694,"76,387.00",ITAD LTD,Programme Spend (Oracle Projects Control Account)
FCO,FCO,28/03/2017,6.15E+11,"76,092.67",BIS DEPT FOR BUSINESS INNOVATION AND SKILLS,Programme Spend (Oracle Projects Control Account)
FCO,FCO,27/03/2017,EAC017-16MAR17,"76,083.24",BRITISH COUNCIL,British Council Funding Transfer
FCO,FCO,17/03/2017,F014162F,"75,910.98",S MACNEILLIE & SON LTD,Assets Under Construction (Oracle PA Control Account)
FCO,FCO,17/03/2017,F014163F,"75,910.98",S MACNEILLIE & SON LTD,Assets Under Construction (Oracle PA Control Account)
FCO,FCO,17/03/2017,F014164F,"75,910.98",S MACNEILLIE & SON LTD,Assets Under Construction (Oracle PA Control Account)
FCO,FCO,17/03/2017,F014165F,"75,910.98",S MACNEILLIE & SON LTD,Assets Under Construction (Oracle PA Control Account)
FCO,FCO,17/03/2017,F014166F,"75,910.98",S MACNEILLIE & SON LTD,Assets Under Construction (Oracle PA Control Account)
FCO,FCO,17/03/2017,F014167F,"75,910.98",S MACNEILLIE & SON LTD,Assets Under Construction (Oracle PA Control Account)
FCO,FCO,17/03/2017,F014161F,"75,910.98",S MACNEILLIE & SON LTD,Assets Under Construction (Oracle PA Control Account)
FCO,FCO,20/03/2017,F014168PP,"75,910.98",S MACNEILLIE & SON LTD,Assets Under Construction (Oracle PA Control Account)
FCO,FCO,20/03/2017,F014169PP,"75,910.98",S MACNEILLIE & SON LTD,Assets Under Construction (Oracle PA Control Account)
FCO,FCO,20/03/2017,F014170PP,"75,910.98",S MACNEILLIE & SON LTD,Assets Under Construction (Oracle PA Control Account)
FCO,FCO,02/03/2017,7005685-13-MAR-17,"75,515.37",THE ROYAL BANK OF SCOTLAND,Corporate Credit Card Clearing Account
FCO,FCO,15/03/2017,LOC\17\194,"75,133.52",THE ASIA FOUNDATION,Programme Spend (Oracle Projects Control Account)
FCO,FCO,02/03/2017,ALB/720/011,"75,034.23",ALBANY ASSOCIATES,Programme Spend (Oracle Projects Control Account)
FCO,FCO,20/03/2017,17/03-001-01MAR17,"75,000.00",INTERNTL COMMISSION MISSING PERSONS,Programme Spend (Oracle Projects Control Account)
FCO,FCO,03/03/2017,531,"74,751.08",ABROTEA BULGARIA AD,Multiple Accounts
FCO,FCO,16/03/2017,3355,"74,523.21",NI CO OPERATION OVERSEAS NI CO LTD,Programme Spend (Oracle Projects Control Account)
FCO,FCO,01/03/2017,104722,"74,513.63",SECURITY SERVICES GROUP,Misc Security Payments
FCO,FCO,10/03/2017,06/06/03/2017,"74,472.16",PAKISTAN PEACE COLLECTIVE,Programme Spend (Oracle Projects Control Account)
FCO,FCO,01/03/2017,1700337,"74,259.00",SAS SOFTWARE LTD,Programme Spend (Oracle Projects Control Account)
FCO,FCO,10/03/2017,RKS10032017,"74,019.00",RISHI KESHAV SHAH,Rental Payments - non residential
FCO,FCO,16/03/2017,565,"73,602.75",AKTIS STRATEGY,Programme Spend (Oracle Projects Control Account)
FCO,FCO,09/03/2017,6059822,"73,589.63",FCO SERVICES,Security: Works Non-Residential
FCO,FCO,22/03/2017,6060279,"73,415.74",FCO SERVICES,Assets Under Construction (Oracle PA Control Account)
FCO,FCO,27/03/2017,90289643,"73,355.74",BRITISH COUNCIL,Programme Spend (Oracle Projects Control Account)
FCO,FCO,07/03/2017,PROEMB060317,"73,233.32",PICKFORDS MOVE MANAGEMENT LTD,Residential Property Services
FCO,FCO,27/03/2017,15-Mar-17,"72,940.00",DANISH REFUGEE COUNCIL,Programme Spend (Oracle Projects Control Account)
FCO,FCO,06/03/2017,18013,"72,244.43",LANGUAGE SERVICES DIRECT,Language Tuition: Essential
FCO,FCO,13/03/2017,251MDR,"72,207.75",GREAT BRITAIN-CHINA CENTRE,Programme Spend (Oracle Projects Control Account)
FCO,FCO,23/03/2017,15-190,"72,154.73",GLOBAL PARTNERS GOVERNANCE PRACTICE LTD,Programme Spend (Oracle Projects Control Account)
FCO,FCO,27/03/2017,AFK997Z-Q1RENTFY1718-ESDAFK997Z-24JAN17,"71,577.51",THE EGYPTIAN CONSULATE GENERAL IN LONDON,Rental Payments - non residential
FCO,FCO,13/03/2017,6166-POE-CHC,"71,431.91",ISS FACILITY SERVICES LTD FCO OP - POE,Multiple Accounts
FCO,FCO,30/03/2017,28-Mar-17,"71,318.01",KNOWLEDGE TRANSFER NETWORK,Programme Spend (Oracle Projects Control Account)
FCO,FCO,22/03/2017,6060268,"71,250.90",FCO SERVICES,Assets Under Construction (Oracle PA Control Account)
FCO,FCO,30/03/2017,6060514,"70,840.05",FCO SERVICES,Construction Project more than 10k
FCO,FCO,13/03/2017,156E,"70,824.00",WOMEN EMPOWERMENT ORGANIZATION,Programme Spend (Oracle Projects Control Account)
FCO,FCO,21/03/2017,IEL139,"70,576.16",ELIXIR CO,Programme Spend (Oracle Projects Control Account)
FCO,FCO,09/03/2017,11614,"70,073.41",DIPLOMATIC MISSION SUPPLIES LTD,Recharge Suspense Account (Oracle PA Control Account)
FCO,FCO,15/03/2017,Q1-562,"70,017.87",TORCHLIGHT SOLUTIONS LTD,Programme Spend (Oracle Projects Control Account)
FCO,FCO,17/03/2017,KS_185062_10MAR2017,"69,763.65",VOYA FINANCIAL,Multiple Accounts
FCO,FCO,02/03/2017,118,"69,639.43",NAJMI SONS AND BROTHERS LTD,Fuel Oil Residential
FCO,FCO,10/03/2017,479,"69,336.00",CORE M AND E SERVICES LIMITED,Unscheduled repairs to building infrastructure
FCO,FCO,27/03/2017,TF02-24MAR17,"69,073.71",TEARFUND,Programme Spend (Oracle Projects Control Account)
FCO,FCO,17/03/2017,7739,"69,028.50",DEKOGARD,Assets Under Construction (Oracle PA Control Account)
FCO,FCO,16/03/2017,112315,"69,000.00",RIDGE AND PARTNERS,Repairs And Refurbishment: Works Residential
FCO,FCO,16/03/2017,FACMFI000006264,"68,742.28",INTERSERVE FM LTD,Contract Fees
FCO,FCO,09/03/2017,"1,088,108,410,821,080","68,457.00",BIDWELLS,Rental Payments - non residential
FCO,FCO,23/03/2017,119639,"68,365.00",UNIVERSITY OF READING,Training Courses
FCO,FCO,06/03/2017,566,"68,349.00",IIZUKA,Information Systems Maintenance
FCO,FCO,07/03/2017,250MDR,"68,011.36",GREAT BRITAIN-CHINA CENTRE,Programme Spend (Oracle Projects Control Account)
FCO,FCO,15/03/2017,133,"67,826.00",PEACEFUL CHANGE INITIATIVE,Programme Spend (Oracle Projects Control Account)
FCO,FCO,29/03/2017,150/2017,"67,657.36",IOM INTERNATIONAL ORG FOR MIGRATION,Programme Spend (Oracle Projects Control Account)
FCO,FCO,29/03/2017,CM_185062_24MAR2017,"67,451.96",VOYA FINANCIAL,Multiple Accounts
FCO,FCO,09/03/2017,2017-003,"67,274.00",PECHTER POLLS,Programme Spend (Oracle Projects Control Account)
FCO,FCO,02/03/2017,23FEB17A,"67,210.00",CENTRE FOR HUMANITARIAN DIALOGUE,Programme Spend (Oracle Projects Control Account)
FCO,FCO,03/03/2017,CM_185062_24FEB2017,"67,194.79",VOYA FINANCIAL,Multiple Accounts
FCO,FCO,29/03/2017,105352,"67,157.24",SECURITY SERVICES GROUP,Assets Under Construction (Oracle PA Control Account)
FCO,FCO,13/03/2017,1354702365,"67,024.38",PRICEWATERHOUSE COOPERS LLP,Programme Spend (Oracle Projects Control Account)
FCO,FCO,31/03/2017,"10,753,108,391,083,800,000","66,935.60",SCHOOL,Schooling for Children at Post
FCO,FCO,23/03/2017,91751434,"66,914.28",HYDROGRAPHIC OFFICE,Programme Spend (Oracle Projects Control Account)
FCO,FCO,22/03/2017,ISOS-MAR16,"66,863.42",SCHOOL,Schooling for Children at Post
FCO,FCO,31/03/2017,29-Mar-17,"66,606.35",TOYOTA MOTOR THAILAND CO LTD,Recharge Suspense Account (Oracle PA Control Account)
FCO,FCO,20/03/2017,5211648,"66,312.08",CIPFA - CHARTERED INSTITUTE OF PUBLIC FINANCE & ACCOUNTANCY,Programme Spend (Oracle Projects Control Account)
FCO,FCO,17/03/2017,6883-31/1,"66,185.00",ADAM SMITH INTERNATIONAL,Programme Spend (Oracle Projects Control Account)
FCO,FCO,30/03/2017,6060520,"66,000.00",FCO SERVICES,Construction Project more than 10k
FCO,FCO,29/03/2017,EL_INDEMNITYDH_230317,"65,783.05",CARPA,Le Staff Pay
FCO,FCO,22/03/2017,11,"65,746.64",SYNERGY FOR JUSTICE LTD,Programme Spend (Oracle Projects Control Account)
FCO,FCO,30/03/2017,3780053527,"65,414.67",COMPUTACENTER UK LTD,Assets Under Construction (Oracle PA Control Account)
FCO,FCO,16/03/2017,1279,"65,322.00",COFFEY INTERNATIONAL DEVELOPMENT,Programme Spend (Oracle Projects Control Account)
FCO,FCO,08/03/2017,Apr-17,"65,132.00",WOMEN IN FRONT,Programme Spend (Oracle Projects Control Account)
FCO,FCO,14/03/2017,201704,"65,108.00",HURIDOCS,Programme Spend (Oracle Projects Control Account)
FCO,FCO,21/03/2017,10139,"65,000.00",WILTON PARK EXECUTIVE AGENCY,Multiple Accounts
FCO,FCO,20/03/2017,3356,"64,884.17",NI CO OPERATION OVERSEAS NI CO LTD,Programme Spend (Oracle Projects Control Account)
FCO,FCO,17/03/2017,15-171,"64,865.64",GLOBAL PARTNERS GOVERNANCE PRACTICE LTD,Programme Spend (Oracle Projects Control Account)
FCO,FCO,13/03/2017,2017-0047,"64,729.81",STOOF INTERNATIONAL VERTRIEBSGESELLSCHAFT MBH,Assets Under Construction (Oracle PA Control Account)
FCO,FCO,13/03/2017,2017-0048,"64,729.81",STOOF INTERNATIONAL VERTRIEBSGESELLSCHAFT MBH,Assets Under Construction (Oracle PA Control Account)
FCO,FCO,13/03/2017,2017-0049,"64,729.81",STOOF INTERNATIONAL VERTRIEBSGESELLSCHAFT MBH,Assets Under Construction (Oracle PA Control Account)
FCO,FCO,13/03/2017,2017-0046,"64,729.81",STOOF INTERNATIONAL VERTRIEBSGESELLSCHAFT MBH,Assets Under Construction (Oracle PA Control Account)
FCO,FCO,24/03/2017,2017-0062,"64,729.81",STOOF INTERNATIONAL VERTRIEBSGESELLSCHAFT MBH,Assets Under Construction (Oracle PA Control Account)
FCO,FCO,24/03/2017,2017-0061,"64,729.81",STOOF INTERNATIONAL VERTRIEBSGESELLSCHAFT MBH,Assets Under Construction (Oracle PA Control Account)
FCO,FCO,09/03/2017,11547,"64,653.85",DIPLOMATIC MISSION SUPPLIES LTD,"Purchase of Furniture, Fittings and Domestic Appliances"
FCO,FCO,13/03/2017,6060131,"64,346.71",FCO SERVICES,Assets Under Construction (Oracle PA Control Account)
FCO,FCO,29/03/2017,49423,"64,242.14",WYG GROUP,Programme Spend (Oracle Projects Control Account)
FCO,FCO,17/03/2017,1287,"64,088.00",COFFEY INTERNATIONAL DEVELOPMENT,Training Courses
FCO,FCO,23/03/2017,1473,"64,000.00",OROSTREAM INTERNATIONAL CONTRACTS LTD,Assets Under Construction (Oracle PA Control Account)
FCO,FCO,31/03/2017,210317A,"63,757.08",BBC MEDIA ACTION,Programme Spend (Oracle Projects Control Account)
FCO,FCO,13/03/2017,6182-POE-TWT,"63,694.54",ISS FACILITY SERVICES LTD FCO OP - POE,Multiple Accounts
FCO,FCO,08/03/2017,2170118,"63,665.74",BELCOM ELEKTRO GMBH,Assets Under Construction (Oracle PA Control Account)
FCO,FCO,16/03/2017,6060197,"63,656.25",FCO SERVICES,IT/IS Consultancy
FCO,FCO,29/03/2017,27-Mar-17,"63,347.74",STRENGTHEN PARTICIPATORY ORGANISATN,Programme Spend (Oracle Projects Control Account)
FCO,FCO,06/03/2017,195330707,"63,280.31",E2V TECHNOLOGIES,Vehicle Maintenance
FCO,FCO,28/03/2017,UK_NIGERIA_INVOICE#2-SECONDTRANCHEPAYMENT,"63,225.13",GENEVA CENTRE FOR THE DEMOCRATIC CONTROL OF ARMED FORCES - DCAF,Programme Spend (Oracle Projects Control Account)
FCO,FCO,09/03/2017,LAP-MEA/2016/0019,"63,188.71",LAPIS MIDDLE EAST AND AFRICA FZ LLC,Programme Spend (Oracle Projects Control Account)
FCO,FCO,14/03/2017,6127-VAR-HKN,"63,114.27",ISS FACILITY SERVICES LTD FCO OP,Multiple Accounts
FCO,FCO,31/03/2017,SINV000672,"62,947.29",IISS - INTERNATIONAL INSTITUTE FOR STRATEGIC STUDIES,Programme Spend (Oracle Projects Control Account)
FCO,FCO,29/03/2017,23-Feb-17,"62,749.00",CHRISTIAN AID,Programme Spend (Oracle Projects Control Account)
FCO,FCO,06/03/2017,23-Feb-17,"62,269.91",HENRY DUNANT CENTRE FOR HUMANITARIAN DIALOGUE,Programme Spend (Oracle Projects Control Account)
FCO,FCO,27/03/2017,1800152629,"61,997.81",UNIVERSITY OF SHEFFIELD,Programme Spend (Oracle Projects Control Account)
FCO,FCO,01/03/2017,44717697,"61,997.78",MERCER HUMAN RESOURCE CONSULTING LTD,Market Information
FCO,FCO,29/03/2017,17700169,"61,775.60",MMC INTERNATIONAL BV,Recharge Suspense Account (Oracle PA Control Account)
FCO,FCO,06/03/2017,22-Feb-17,"61,516.56",THE CARTER CENTER INC,Programme Spend (Oracle Projects Control Account)
FCO,FCO,01/03/2017,3780052027,"61,499.33",COMPUTACENTER UK LTD,Specialist Contractors
FCO,FCO,07/03/2017,IVC0000701,"61,449.94",DEVELOPMENT GATEWAY INC,Programme Spend (Oracle Projects Control Account)
FCO,FCO,08/03/2017,NAIR/140117,"61,376.76",KOIZA INTERNATIONAL LTD,Non-Capital Expenditure Re : Furniture Projects (Oracle Projects Control Account
FCO,FCO,08/03/2017,91733575,"61,341.00",HYDROGRAPHIC OFFICE,Programme Spend (Oracle Projects Control Account)
FCO,FCO,03/03/2017,SI\008851,"61,329.21",NCA NATIONAL CRIME AGENCY,Programme Spend (Oracle Projects Control Account)
FCO,FCO,20/03/2017,DDGHMALY002-16MAR17,"61,321.00",DANISH DEMINING GROUP,Programme Spend (Oracle Projects Control Account)
FCO,FCO,15/03/2017,I-HB-06.03.2017-3,"60,982.75",PICKFORDS MOVE MANAGEMENT LTD,Heavy Baggage
FCO,FCO,16/03/2017,GOTV_001/2017,"60,821.97",ARK GROUP DMCC,Programme Spend (Oracle Projects Control Account)
FCO,FCO,13/03/2017,33253,"60,584.14",WESTMINSTER FOUNDATION FOR DEMOCRACY,Programme Spend (Oracle Projects Control Account)
FCO,FCO,16/03/2017,17-035,"60,573.00",INTERNATIONAL ALERT,Programme Spend (Oracle Projects Control Account)
FCO,FCO,31/03/2017,6060606,"60,247.69",FCO SERVICES,Assets Under Construction (Oracle PA Control Account)
FCO,FCO,21/03/2017,EL_PARISHUMANISFEB17_200317,"60,238.59",HUMANIS,Overseas Tax And Social Security
FCO,FCO,14/03/2017,6932-19,"60,105.05",ADAM SMITH INTERNATIONAL,Programme Spend (Oracle Projects Control Account)
FCO,FCO,21/03/2017,08-Mar-17,"60,089.00",WOMENS INITIATIVES FOR GENDER JUSTICE,Programme Spend (Oracle Projects Control Account)
FCO,FCO,10/03/2017,KH_06_080317,"60,000.00",ICAN,Programme Spend (Oracle Projects Control Account)
FCO,FCO,27/03/2017,90289905,"60,000.00",BRITISH COUNCIL,Programme Spend (Oracle Projects Control Account)
FCO,FCO,20/03/2017,17-0026A,"59,718.89",COMPAGNIE FONCIERE DU LEMAN,Building Fabric Services
FCO,FCO,31/03/2017,3881138930,"59,683.35",COMPUTACENTER UK LTD,Licences
FCO,FCO,29/03/2017,USN_UNDEFMCF1_270317,"59,590.00",UNITED NATIONS GENERAL TRUST FUND AC,Programme Spend (Oracle Projects Control Account)
FCO,FCO,29/03/2017,DBPENSIONRENEWALPREMIUMOCT2016,"59,579.54",IRISH LIFE,Multiple Accounts
FCO,FCO,16/03/2017,7040.09,"59,562.27",ADAM SMITH INTERNATIONAL,Programme Spend (Oracle Projects Control Account)
FCO,FCO,20/03/2017,90287190,"59,366.90",BRITISH COUNCIL ALGERIA,Programme Spend (Oracle Projects Control Account)
FCO,FCO,29/03/2017,07-Mar-17,"59,145.00",CHRISTIAN AID,Programme Spend (Oracle Projects Control Account)
FCO,FCO,31/03/2017,6060604,"59,008.00",FCO SERVICES,Assets Under Construction (Oracle PA Control Account)
FCO,FCO,24/03/2017,dcal 24-MAR-2017 1131,"58,791.55",THE ROYAL BANK OF SCOTLAND,Recharge Suspense Account (Oracle PA Control Account)
FCO,FCO,10/03/2017,INVFCO311016-002,"58,750.00",SCENESAFE LTD,Programme Spend (Oracle Projects Control Account)
FCO,FCO,06/03/2017,40569,"58,714.28",IPL,Assets Under Construction (Oracle PA Control Account)
FCO,FCO,27/03/2017,24-Mar-17,"58,665.95",IOM INTERNATIONAL ORG FOR MIGRATION,Programme Spend (Oracle Projects Control Account)
FCO,FCO,03/03/2017,NB/17/3,"58,525.14",AFGHAN KNOWLEDGE SOLUTION,Programme Spend (Oracle Projects Control Account)
FCO,FCO,29/03/2017,49424,"58,340.41",WYG GROUP,Programme Spend (Oracle Projects Control Account)
FCO,FCO,17/03/2017,486,"58,264.12",CORE M AND E SERVICES LIMITED,Assets Under Construction (Oracle PA Control Account)
FCO,FCO,08/03/2017,8326,"58,248.00",GROUNDTRUTH CONSULTING LTD,Training Courses
FCO,FCO,22/03/2017,Q1-578,"58,192.63",TORCHLIGHT SOLUTIONS LTD,Programme Spend (Oracle Projects Control Account)
FCO,FCO,20/03/2017,BA-023/17,"58,002.10",IOM INTERNATIONAL ORG FOR MIGRATION,Programme Spend (Oracle Projects Control Account)
FCO,FCO,10/03/2017,0217_HP-6,"57,971.38",INTERSERVE FM LTD,Construction Project more than 10k
FCO,FCO,24/03/2017,INV001811,"57,822.54",INTEGRITY RESEARCH AND CONSULTANCY LTD,Programme Spend (Oracle Projects Control Account)
FCO,FCO,17/03/2017,1288,"57,600.00",COFFEY INTERNATIONAL DEVELOPMENT,Training Courses
FCO,FCO,22/03/2017,H.E-BHC-0562,"57,460.87",HARIS ENTERPRISES PVT LTD,Local Guards
FCO,FCO,27/03/2017,250017988,"57,460.26",CABINET OFFICE,Programme Spend (Oracle Projects Control Account)
FCO,FCO,08/03/2017,2-07MAR17,"57,393.00",GLOBAL RIGHTS COMPLIANCE LLP,Programme Spend (Oracle Projects Control Account)
FCO,FCO,17/03/2017,2506,"57,209.00",THECITYUK,Programme Spend (Oracle Projects Control Account)
FCO,FCO,02/03/2017,24-239,"57,033.56",HEALIX INTERNATIONAL LTD,Hospital/Specialist Treatment
FCO,FCO,09/03/2017,6059687,"56,754.00",FCO SERVICES,Assets Under Construction (Oracle PA Control Account)
FCO,FCO,20/03/2017,40403216,"56,600.00",ICF CONSULTING SERVICES LIMITED,Programme Spend (Oracle Projects Control Account)
FCO,FCO,21/03/2017,40403218,"56,600.00",ICF CONSULTING SERVICES LIMITED,Programme Spend (Oracle Projects Control Account)
FCO,FCO,24/03/2017,40403229,"56,600.00",ICF CONSULTING SERVICES LIMITED,Programme Spend (Oracle Projects Control Account)
FCO,FCO,02/03/2017,6059988,"56,589.00",FCO SERVICES,Construction Project more than 10k
FCO,FCO,22/03/2017,5211982,"56,514.24",CIPFA - CHARTERED INSTITUTE OF PUBLIC FINANCE & ACCOUNTANCY,Programme Spend (Oracle Projects Control Account)
FCO,FCO,17/03/2017,DUB37106709,"56,270.75",PRICE WATERHOUSE COOPERS,Programme Spend (Oracle Projects Control Account)
FCO,FCO,29/03/2017,DUB37107654,"56,270.75",PRICE WATERHOUSE COOPERS,Programme Spend (Oracle Projects Control Account)
FCO,FCO,29/03/2017,16600,"56,248.84",CONCEPT BUILDING SERVICES SOUTHERN LTD,Assets Under Construction (Oracle PA Control Account)
FCO,FCO,10/03/2017,0217_UK-52,"56,007.39",INTERSERVE FM LTD,Multiple Accounts
FCO,FCO,21/03/2017,40651,"55,987.49",IPL,Assets Under Construction (Oracle PA Control Account)
FCO,FCO,24/03/2017,NYUKMIS_RBIS_ 014_210317,"55,867.00",UNITED NATIONS,Programme Spend (Oracle Projects Control Account)
FCO,FCO,13/03/2017,3-08MAR17,"55,783.00",HARDWIRED INC,Programme Spend (Oracle Projects Control Account)
FCO,FCO,22/03/2017,NKP002B-FY1718-ESDNKP002B-21MAR17,"55,613.24",ACCOMODATION PROVIDER,Rental Payments - residential
FCO,FCO,09/03/2017,20170308001,"55,300.00",AGILE BYTE LIMITED,IT/IS Consultancy
FCO,FCO,14/03/2017,11552,"55,126.84",DIPLOMATIC MISSION SUPPLIES LTD,"Purchase of Furniture, Fittings and Domestic Appliances"
FCO,FCO,02/03/2017,6059997,"54,996.16",FCO SERVICES,Construction Project more than 10k
FCO,FCO,23/03/2017,32,"54,805.42",RANGER PROTECTION AND SECURITY COMPANY LTD,Local Guards
FCO,FCO,21/03/2017,1581,"54,720.82",ACE BUSINESS SOLUTIONS LTD,Property Maintenance Overseas Residential
FCO,FCO,31/03/2017,31,"54,688.07",RANGER PROTECTION AND SECURITY COMPANY LTD,Local Guards
FCO,FCO,20/03/2017,RS07/16,"54,666.82",STABILISATION NETWORK,Programme Spend (Oracle Projects Control Account)
FCO,FCO,07/03/2017,1211,"54,482.44",WORX O SEVEN,Assets Under Construction (Oracle PA Control Account)
FCO,FCO,14/03/2017,1214,"54,482.44",WORX O SEVEN,Security: Works Residential
FCO,FCO,30/03/2017,6972-0001-15,"54,451.26",ADAM SMITH INTERNATIONAL,Programme Spend (Oracle Projects Control Account)
FCO,FCO,10/03/2017,01-Mar-17,"54,411.63",CARBON TRUST BEIJING CONSULTING LIMITED,Programme Spend (Oracle Projects Control Account)
FCO,FCO,29/03/2017,156/2017,"54,365.28",IOM INTERNATIONAL ORG FOR MIGRATION,Programme Spend (Oracle Projects Control Account)
FCO,FCO,03/03/2017,Q1-568,"54,340.97",TORCHLIGHT SOLUTIONS LTD,Programme Spend (Oracle Projects Control Account)
FCO,FCO,29/03/2017,27-Mar-17,"54,331.82",INTERNATIONAL CENTRE FOR MIGRATION POLICY DEVELOPMENT,Programme Spend (Oracle Projects Control Account)
FCO,FCO,15/03/2017,ECJU1_130317,"54,130.16",BIS DEPT FOR BUSINESS INNOVATION AND SKILLS,Miscellaneous Expenditure: inc subscriptions and equipment maintenance
FCO,FCO,31/03/2017,E-HB-27.03.2017-3,"53,841.19",PICKFORDS MOVE MANAGEMENT LTD,Heavy Baggage
FCO,FCO,02/03/2017,6059998,"53,753.50",FCO SERVICES,Construction Project more than 10k
FCO,FCO,23/03/2017,6.23E+11,"53,722.00",DEPARTMENT FOR INTERNATIONAL TRADE,Programme Spend (Oracle Projects Control Account)
FCO,FCO,28/03/2017,6.23E+11,"53,722.00",DEPARTMENT FOR INTERNATIONAL TRADE,Programme Spend (Oracle Projects Control Account)
FCO,FCO,31/03/2017,158019,"53,410.00",NELSON WORLDWIDE INC,Assets Under Construction (Oracle PA Control Account)
FCO,FCO,20/03/2017,SKA-SOM-BEM-16-0029R,"53,129.83",SKA INTERNATIONAL GROUP,Multiple Accounts
FCO,FCO,14/03/2017,1617T3S013-0313&1617T3S013-0313B,"53,062.75",SCHOOL,Schooling for Children at Post
FCO,FCO,29/03/2017,6,"52,958.27",KOMATSUBARA KOMUTEN LTD,Recharge Suspense Account (Oracle PA Control Account)
FCO,FCO,02/03/2017,ALB/728/009,"52,951.19",ALBANY ASSOCIATES,Programme Spend (Oracle Projects Control Account)
FCO,FCO,29/03/2017,155/2017,"52,842.64",IOM INTERNATIONAL ORG FOR MIGRATION,Programme Spend (Oracle Projects Control Account)
FCO,FCO,30/03/2017,6060507,"52,496.00",FCO SERVICES,Misc Security Payments
FCO,FCO,13/03/2017,90037676,"52,134.77",COLLEGE OF POLICING,Programme Spend (Oracle Projects Control Account)
FCO,FCO,14/03/2017,10197,"52,088.11",SENSETECH SYSTEMS,FM Interserve Works
FCO,FCO,16/03/2017,113011,"52,000.00",RIDGE AND PARTNERS,Repairs And Refurbishment: Works Residential
FCO,FCO,17/03/2017,5,"51,940.01",AFGHANISTAN CAPACITY DEVELOPMENT AND EDUCATIONAL ORGANIZATION,Programme Spend (Oracle Projects Control Account)
FCO,FCO,01/03/2017,7438,"51,728.29",AL GHODWA,Assets Under Construction (Oracle PA Control Account)
FCO,FCO,27/03/2017,6.15E+11,"51,674.83",BIS DEPT FOR BUSINESS INNOVATION AND SKILLS,Programme Spend (Oracle Projects Control Account)
FCO,FCO,15/03/2017,20-Feb-17,"51,660.21",CHINA MODERN EDUCATIONAL EQUIPMENT MAGAZINE,Programme Spend (Oracle Projects Control Account)
FCO,FCO,29/03/2017,CH_02_280317,"51,623.47",BANCO CORPBANCA COLOMBIA SA,Assets Under Construction (Oracle PA Control Account)
FCO,FCO,23/03/2017,170228_FCO,"51,603.86",CASE MATRIX NETWORK,Programme Spend (Oracle Projects Control Account)
FCO,FCO,27/03/2017,26-Mar-17,"51,590.05",AMERICAN LIFE INSURANCE COMPANY,Multiple Accounts
FCO,FCO,06/03/2017,6060049,"51,540.55",FCO SERVICES,Assets Under Construction (Oracle PA Control Account)
FCO,FCO,07/03/2017,ECORYSUKC5579/3,"51,394.45",ECORYS GROUP UK,Programme Spend (Oracle Projects Control Account)
FCO,FCO,03/03/2017,1001016499,"51,382.72",BAE SYSTEMS APPLIED INTELLIGENCE LIMITED,Information Systems Maintenance
FCO,FCO,06/03/2017,SKA-SOM-BEM-17-0005,"51,141.78",SKA INTERNATIONAL GROUP,Office Support Services
FCO,FCO,02/03/2017,6059996,"50,854.24",FCO SERVICES,Construction Project more than 10k
FCO,FCO,14/03/2017,7059-06,"50,772.61",ADAM SMITH INTERNATIONAL,Programme Spend (Oracle Projects Control Account)
FCO,FCO,10/03/2017,0217_UK-39,"50,643.49",INTERSERVE FM LTD,FM Interserve Works
FCO,FCO,10/03/2017,531997,"50,459.65",KENYA POWER AND LIGHTING CO LTD,Multiple Accounts
FCO,FCO,15/03/2017,1123625,"50,335.00",UCL CONSULTANTS LIMITED,Programme Spend (Oracle Projects Control Account)
FCO,FCO,09/03/2017,PRL_AP_070317_FCASAMUSICA,"50,089.37",FUNDACAO CASA DA MUSICA,Programme Spend (Oracle Projects Control Account)
FCO,FCO,01/03/2017,28297711,"50,000.00",AECOM,Programme Spend (Oracle Projects Control Account)
FCO,FCO,06/03/2017,CPACC_SYRIATRUSTFUND_03032017,"50,000.00",OPCW,Programme Spend (Oracle Projects Control Account)
FCO,FCO,13/03/2017,13173,"50,000.00",IFF RESEARCH,Research Budget
FCO,FCO,16/03/2017,28300211,"50,000.00",AECOM,Programme Spend (Oracle Projects Control Account)
FCO,FCO,22/03/2017,2,"50,000.00",PRAWA,Programme Spend (Oracle Projects Control Account)
FCO,FCO,24/03/2017,19096,"50,000.00",MCKINSEY AND COMPANY,Programme Spend (Oracle Projects Control Account)
FCO,FCO,31/03/2017,4350698-27MAR17,"50,000.00",UNIVERSITY OF LONDON,Training Courses
FCO,FCO,14/03/2017,816,"49,923.18",KYIV MOHYLA BUSINESS SCHOOL,Recharge Suspense Account (Oracle PA Control Account)
FCO,FCO,09/03/2017,6060103,"49,848.99",FCO SERVICES,Assets Under Construction (Oracle PA Control Account)
FCO,FCO,31/03/2017,X-HB-27.03.2017-2,"49,799.56",PICKFORDS MOVE MANAGEMENT LTD,Heavy Baggage
FCO,FCO,28/03/2017,IEL140,"49,765.11",ELIXIR CO,Programme Spend (Oracle Projects Control Account)
FCO,FCO,28/03/2017,185,"49,631.50",CLOUDBREAK ANALYSIS LIMITED,Programme Spend (Oracle Projects Control Account)
FCO,FCO,31/03/2017,34332,"49,594.41",HM TREASURY,Inward Secondments
FCO,FCO,16/03/2017,ARTICLE19/FCO-MCFHRD/01/2017,"49,586.64",ARTICLE 19,Programme Spend (Oracle Projects Control Account)
FCO,FCO,30/03/2017,3100004146,"49,500.00",BLACKBERRY UK LIMITED,Information Systems Maintenance
FCO,FCO,20/03/2017,90283543,"49,440.95",BRITISH COUNCIL,Programme Spend (Oracle Projects Control Account)
FCO,FCO,31/03/2017,6060605,"49,345.66",FCO SERVICES,Assets Under Construction (Oracle PA Control Account)
FCO,FCO,15/03/2017,13-Mar-17,"49,252.50",UNITED NATIONS,Consular Special Projects Fund
FCO,FCO,24/03/2017,1-23MAR17,"49,233.33",HAMPTON INN  SUITES,Programme Spend (Oracle Projects Control Account)
FCO,FCO,13/03/2017,6060113,"48,972.25",FCO SERVICES,Energy Saving Measures
FCO,FCO,28/03/2017,OTD_8317_08/03/17,"48,936.78",BIOT REVENUE ACCOUNT,Programme Spend (Oracle Projects Control Account)
FCO,FCO,03/03/2017,90277069A,"48,839.36",BRITISH COUNCIL,Programme Spend (Oracle Projects Control Account)
FCO,FCO,08/03/2017,91733585,"48,837.00",HYDROGRAPHIC OFFICE,Programme Spend (Oracle Projects Control Account)
FCO,FCO,22/03/2017,2017-2-0003,"48,794.34",BEYOND BORDERS CONSULTING,Programme Spend (Oracle Projects Control Account)
FCO,FCO,14/03/2017,1587519,"48,654.24",ORACLE CORPORATION (UK) LTD,Multiple Accounts
FCO,FCO,21/03/2017,BH1063750,"48,635.66",TOUCHDOWN TRAVELS LIMITED,Recharge Suspense Account (Oracle PA Control Account)
FCO,FCO,08/03/2017,3780052698,"48,488.00",COMPUTACENTER UK LTD,Specialist Contractors
FCO,FCO,31/03/2017,6060602,"48,427.00",FCO SERVICES,Assets Under Construction (Oracle PA Control Account)
FCO,FCO,01/03/2017,MSCGB16/RFP/004,"48,321.88",EUROPEAN ENDOWMENT FOR DEMOCRACY,Programme Spend (Oracle Projects Control Account)
FCO,FCO,07/03/2017,2359,"48,264.13",MINES ADVISORY GROUP,Programme Spend (Oracle Projects Control Account)
FCO,FCO,20/03/2017,LIT_BATTOWERRENT_150317,"48,063.37",ARAB UNION CONTRACTING COMPANY,Multiple Accounts
FCO,FCO,07/03/2017,6060070,"48,038.83",FCO SERVICES,Assets Under Construction (Oracle PA Control Account)
FCO,FCO,23/03/2017,LE STAFF CNSSMAR17,"48,033.63",CAISSE NATIONALE DE SECU SOCIA,Multiple Accounts
FCO,FCO,06/03/2017,BEWC/FCO/ARM/EOM2017/001,"48,000.00",THE BRITISH RUSSIAN CENTRE AND THE BRITISH EAST WEST CENTER,Programme Spend (Oracle Projects Control Account)
FCO,FCO,31/03/2017,MSCGB16I/RFP/005,"47,963.97",EUROPEAN ENDOWMENT FOR DEMOCRACY,Programme Spend (Oracle Projects Control Account)
FCO,FCO,30/03/2017,170210,"47,940.00",BUSINESS LINK JAPAN KK,Programme Spend (Oracle Projects Control Account)
FCO,FCO,17/03/2017,120,"47,866.47",NAJMI SONS AND BROTHERS LTD,Fuel Oil Residential
FCO,FCO,27/03/2017,3780053236,"47,744.00",COMPUTACENTER UK LTD,IT/IS Consultancy
FCO,FCO,08/03/2017,143627,"47,707.94",TNT EXPRESS,Specialist Contractors
FCO,FCO,20/03/2017,GL_FEB 2017_08032017,"47,636.75",CHP CASHBOX TOP UP,Interbank Transfers/Withdrawals
FCO,FCO,24/03/2017,171730,"47,488.76",KOONS OF TYSONS CORNER,Assets Under Construction (Oracle PA Control Account)
FCO,FCO,24/03/2017,7486113,"47,456.00",MOD MINISTRY OF DEFENCE,Programme Spend (Oracle Projects Control Account)
FCO,FCO,13/03/2017,09-Mar-17,"47,437.40",SALZER GMBH,Assets Under Construction (Oracle PA Control Account)
FCO,FCO,07/03/2017,2626-FINAL,"47,329.70",COGENT ELECTRICAL SERVICES LTD FORM WES,Assets Under Construction (Oracle PA Control Account)
FCO,FCO,02/03/2017,83182732,"47,275.17",VODAFONE LTD,Multiple Accounts
FCO,FCO,30/03/2017,6932-20,"47,109.39",ADAM SMITH INTERNATIONAL,Programme Spend (Oracle Projects Control Account)
FCO,FCO,16/03/2017,A036019,"47,106.60",BRIGHT HORIZONS FAMILY SOLUTION LTD,FCO Nursery
FCO,FCO,27/03/2017,INV0106,"46,990.00",INTERNATIONAL GOVERNANCE AND RISK LIMITED GOVRISK,Programme Spend (Oracle Projects Control Account)
FCO,FCO,29/03/2017,GB/2017163,"46,940.17",PERMANENT COURT OF ARBITRATION,Programme Spend (Oracle Projects Control Account)
FCO,FCO,21/03/2017,3358,"46,924.76",NI CO OPERATION OVERSEAS NI CO LTD,Programme Spend (Oracle Projects Control Account)
FCO,FCO,21/03/2017,6800112406,"46,896.54",METROPOLITAN POLICE AUTHORITY,Programme Spend (Oracle Projects Control Account)
FCO,FCO,14/03/2017,6105-FIX-HKN,"46,850.43",ISS FACILITY SERVICES LTD FCO OP,Multiple Accounts
FCO,FCO,22/03/2017,RRD-02-2016/17,"46,729.10",LEDAP LEGAL DEFENCE ASSIST PROJECT,Programme Spend (Oracle Projects Control Account)
FCO,FCO,24/03/2017,83502662,"46,683.34",VODAFONE LTD,Multiple Accounts
FCO,FCO,06/03/2017,51748,"46,633.15",STONEWALL EQUALITY LTD,Programme Spend (Oracle Projects Control Account)
FCO,FCO,23/03/2017,22MAR17B,"46,601.12",ARTICLE 19,Programme Spend (Oracle Projects Control Account)
FCO,FCO,10/03/2017,0217_BR5-2,"46,529.33",INTERSERVE FM LTD,Recharge Suspense Account (Oracle PA Control Account)
FCO,FCO,30/03/2017,40673,"46,438.91",IPL,Assets Under Construction (Oracle PA Control Account)
FCO,FCO,14/03/2017,6124-VAR-CHP,"46,343.45",ISS FACILITY SERVICES LTD FCO OP,Multiple Accounts
FCO,FCO,08/03/2017,GRD17/005583,"46,305.00",G4S SECURITY SERVICES KENYA LTD,UK Guarding Contracts Overseas
FCO,FCO,02/03/2017,01-Mar-17,"46,127.04",HEATHROW TRAVEL CARE,Human Rights : Assistance Policy
FCO,FCO,29/03/2017,6932-18,"46,056.29",ADAM SMITH INTERNATIONAL,Programme Spend (Oracle Projects Control Account)
FCO,FCO,14/03/2017,6108-FIX-JAT,"46,046.38",ISS FACILITY SERVICES LTD FCO OP,Multiple Accounts
FCO,FCO,10/03/2017,5452983,"46,000.00",CPS CROWN PROSECUTION SERVICE HQ,Programme Spend (Oracle Projects Control Account)
FCO,FCO,13/03/2017,05-Mar-17,"45,987.42",SHAMEER KASIM PALIATHAZHATHU,Recharge Suspense Account (Oracle PA Control Account)
FCO,FCO,07/03/2017,6060062,"45,942.00",FCO SERVICES,IT/IS Consultancy
FCO,FCO,01/03/2017,SIN018020,"45,871.00",THE ASSOCIATION OF COMMONWEALTH UNIVERSITIES,Programme Spend (Oracle Projects Control Account)
FCO,FCO,06/03/2017,250017383,"45,660.00",CABINET OFFICE,Programme Spend (Oracle Projects Control Account)
FCO,FCO,17/03/2017,250017715,"45,660.00",CABINET OFFICE,Programme Spend (Oracle Projects Control Account)
FCO,FCO,22/03/2017,6060318,"45,409.00",FCO SERVICES,Residential Property Services
FCO,FCO,22/03/2017,6060270,"45,316.50",FCO SERVICES,Assets Under Construction (Oracle PA Control Account)
FCO,FCO,27/03/2017,583,"45,141.75",AKTIS STRATEGY,Programme Spend (Oracle Projects Control Account)
FCO,FCO,09/03/2017,BRD001-T0002605-01MAR17,"45,108.07",COLLIERS INTERNATIONAL,Multiple Accounts
FCO,FCO,31/03/2017,BRD001-T0002605-01APR17,"45,108.07",COLLIERS INTERNATIONAL,Multiple Accounts
FCO,FCO,17/03/2017,IUK01035903,"45,000.00",CONTROL RISKS GROUP,Programme Spend (Oracle Projects Control Account)
FCO,FCO,28/03/2017,FCO/GAPS2017NAP,"45,000.00",GAPS UK GENDER ACTION FOR PEACE AND SECURITY,Programme Spend (Oracle Projects Control Account)
FCO,FCO,22/03/2017,1.80E+13,"44,917.51",HMRC HM REVENUE AND CUSTOMS,Specialist Training (Devolved)
FCO,FCO,29/03/2017,CH_03_280317,"44,808.43",BANCO CORPBANCA COLOMBIA SA,Assets Under Construction (Oracle PA Control Account)
FCO,FCO,30/03/2017,6938-20,"44,776.21",ADAM SMITH INTERNATIONAL,Programme Spend (Oracle Projects Control Account)
FCO,FCO,29/03/2017,UAA-VILLA68MUSH,"44,768.62",ACCOMODATION PROVIDER,Rental Payments - residential
FCO,FCO,10/03/2017,TTAS/DS-1402,"44,750.98",AYE AND SONS SERVICES LIMITED,Assets Under Construction (Oracle PA Control Account)
FCO,FCO,31/03/2017,160608,"44,697.99",NELSON WORLDWIDE INC,Assets Under Construction (Oracle PA Control Account)
FCO,FCO,29/03/2017,12357,"44,252.04",BARTON ENGINEERING AND EXPORT,Construction Project more than 10k
FCO,FCO,22/03/2017,6060280,"44,206.83",FCO SERVICES,Assets Under Construction (Oracle PA Control Account)
FCO,FCO,07/03/2017,8,"44,129.24",Third of The Late Yacob Behbehani,Recharge Suspense Account (Oracle PA Control Account)
FCO,FCO,23/03/2017,MST010883,"44,008.26",DSTL - DEFENCE SCIENCE & TECHNOLOGY LABORATORY,Radiocommunications Expenses
FCO,FCO,02/03/2017,6060021,"43,971.12",FCO SERVICES,Assets Under Construction (Oracle PA Control Account)
FCO,FCO,23/03/2017,2,"43,911.19",UKRAINE NGO FORUM,Programme Spend (Oracle Projects Control Account)
FCO,FCO,10/03/2017,DRC2017002,"43,871.00",TRIAL,Programme Spend (Oracle Projects Control Account)
FCO,FCO,06/03/2017,3780052646,"43,790.52",COMPUTACENTER UK LTD,Specialist Contractors
FCO,FCO,27/03/2017,SALARYMAR17,"43,730.19",STANDARD BANK OF MALAWI,Multiple Accounts
FCO,FCO,22/03/2017,6060255,"43,725.85",FCO SERVICES,Air Freight Dip Bags - Freight & Clearance Charges
FCO,FCO,30/03/2017,30-Mar-17,"43,637.75",NCA NATIONAL CRIME AGENCY,Programme Spend (Oracle Projects Control Account)
FCO,FCO,22/03/2017,6060229,"43,498.09",FCO SERVICES,Assets Under Construction (Oracle PA Control Account)
FCO,FCO,17/03/2017,30650,"43,463.44",COMMONWEALTH TELECOMMUNICATION ORG,Programme Spend (Oracle Projects Control Account)
FCO,FCO,06/03/2017,6059364,"43,461.00",FCO SERVICES,Assets Under Construction (Oracle PA Control Account)
FCO,FCO,17/03/2017,15-186,"43,384.32",GLOBAL PARTNERS GOVERNANCE PRACTICE LTD,Programme Spend (Oracle Projects Control Account)
FCO,FCO,08/03/2017,91733577,"43,319.00",HYDROGRAPHIC OFFICE,Programme Spend (Oracle Projects Control Account)
FCO,FCO,20/03/2017,SKA-SOM-BEM-17-0001R,"43,242.10",SKA INTERNATIONAL GROUP,Catering Services
FCO,FCO,01/03/2017,AHRE/2017/121,"43,121.64",AL HAMLY REAL ESTATE EST,Recharge Suspense Account (Oracle PA Control Account)
FCO,FCO,14/03/2017,135,"43,000.00",IOM INTERNATIONAL ORG FOR MIGRATION,Programme Spend (Oracle Projects Control Account)
FCO,FCO,16/03/2017,TK-VA00500/17#01,"42,986.61",TOYOTA EAST AFRICA LTD,Assets Under Construction (Oracle PA Control Account)
FCO,FCO,17/03/2017,DA004_EGY,"42,967.51",DELIVERY ASSOCIATES LIMITED,Programme Spend (Oracle Projects Control Account)
FCO,FCO,13/03/2017,3345,"42,785.94",NI CO OPERATION OVERSEAS NI CO LTD,Programme Spend (Oracle Projects Control Account)
FCO,FCO,21/03/2017,16049053,"42,671.13",ATKINS LTD,Programme Spend (Oracle Projects Control Account)
FCO,FCO,16/03/2017,Q1-583,"42,482.31",TORCHLIGHT SOLUTIONS LTD,Programme Spend (Oracle Projects Control Account)
FCO,FCO,24/03/2017,12500304,"42,471.70",MERCEDES BENZ VI PARIS IDF,Assets Under Construction (Oracle PA Control Account)
FCO,FCO,27/03/2017,1205,"42,381.00",AXIOM INTERNATIONAL LTD,Programme Spend (Oracle Projects Control Account)
FCO,FCO,20/03/2017,5211985,"42,343.59",CIPFA - CHARTERED INSTITUTE OF PUBLIC FINANCE & ACCOUNTANCY,Programme Spend (Oracle Projects Control Account)
FCO,FCO,20/03/2017,SICN023847,"42,240.60",ISS FACILITIES SERVICES LTD,Multiple Accounts
FCO,FCO,30/03/2017,33260,"42,190.10",WESTMINSTER FOUNDATION FOR DEMOCRACY,Programme Spend (Oracle Projects Control Account)
FCO,FCO,20/03/2017,17MAR17A,"41,981.72",PRICEWATERHOUSE COOPERS ASSOCIATES AFRICA LTD,Programme Spend (Oracle Projects Control Account)
FCO,FCO,20/03/2017,BERLINSOCIALINSURANCEMAR2017,"41,945.09",FIEDLER AND RANDEL STEUERBERATER,Multiple Accounts
FCO,FCO,16/03/2017,MARSEC1415NDP0702,"41,883.28",UNITED NATIONS,Programme Spend (Oracle Projects Control Account)
FCO,FCO,29/03/2017,959,"41,863.94",FEDERAL STATE AUTONOMOUS EDUCATIONAL INSTITUTION OF HIGHER EDUCATION URAL FEDERAL UNIVERSITY,Programme Spend (Oracle Projects Control Account)
FCO,FCO,24/03/2017,2.60E+12,"41,811.50",CAPGEMINI UK PLC,Specialist Contractors
FCO,FCO,22/03/2017,MSCGB17CFP/RFP/001,"41,808.06",EUROPEAN ENDOWMENT FOR DEMOCRACY,Programme Spend (Oracle Projects Control Account)
FCO,FCO,29/03/2017,TLI27081,"41,604.67",TEAM LEYLAND INTERNATIONAL LTD,Vehicle Maintenance
FCO,FCO,20/03/2017,10073,"41,585.00",WILTON PARK EXECUTIVE AGENCY,Training Courses
FCO,FCO,30/03/2017,UAD305CLANDLORD,"41,492.87",ACCOMODATION PROVIDER,Rental Payments - residential
FCO,FCO,17/03/2017,May-17,"41,438.54",WOMEN IN FRONT,Programme Spend (Oracle Projects Control Account)
FCO,FCO,17/03/2017,2505,"41,419.00",THECITYUK,Programme Spend (Oracle Projects Control Account)
FCO,FCO,31/03/2017,6060617,"41,414.50",FCO SERVICES,Assets Under Construction (Oracle PA Control Account)
FCO,FCO,15/03/2017,312,"41,387.00",Optima Defence and Security Group Ltd,Programme Spend (Oracle Projects Control Account)
FCO,FCO,22/03/2017,PEUCWPF160107_2_160317,"41,043.03",MIDDLE EAST TECHNICAL UNIVERSITY,Programme Spend (Oracle Projects Control Account)
FCO,FCO,13/03/2017,IVC0000738,"40,966.63",DEVELOPMENT GATEWAY INC,Programme Spend (Oracle Projects Control Account)
FCO,FCO,27/03/2017,2017-0032/INV/JCLEC,"40,926.13",JCLEC FOUNDATION,Programme Spend (Oracle Projects Control Account)
FCO,FCO,01/03/2017,RENT/010317-280218,"40,912.20",ACCOMODATION PROVIDER,Rental Payments - residential
FCO,FCO,29/03/2017,Q1&Q2EMBASSYRENTALPAYMENT-27MAR17,"40,901.44",ALBERT PALI,Rental Payments - non residential
FCO,FCO,10/03/2017,1595,"40,896.04",TECHNOLOGY STRATEGY BOARD,Programme Spend (Oracle Projects Control Account)
FCO,FCO,24/03/2017,dcal 24-MAR-2017 1153,"40,840.70",THE ROYAL BANK OF SCOTLAND,Children's Concessionary Journeys
FCO,FCO,22/03/2017,583,"40,684.00",IIZUKA,Information Systems Maintenance
FCO,FCO,31/03/2017,29MAR17A,"40,661.00",IOM INTERNATIONAL ORG FOR MIGRATION,Programme Spend (Oracle Projects Control Account)
FCO,FCO,09/03/2017,11541,"40,655.00",DIPLOMATIC MISSION SUPPLIES LTD,"Purchase of Furniture, Fittings and Domestic Appliances"
FCO,FCO,23/03/2017,91751432,"40,618.94",HYDROGRAPHIC OFFICE,Programme Spend (Oracle Projects Control Account)
FCO,FCO,20/03/2017,2407,"40,605.33",MINES ADVISORY GROUP,Programme Spend (Oracle Projects Control Account)
FCO,FCO,10/03/2017,GRD17/005539,"40,465.82",G4S SECURITY SERVICES KENYA LTD,Multiple Accounts
FCO,FCO,06/03/2017,SKA-SOM-BEM-17-0008,"40,407.07",SKA INTERNATIONAL GROUP,Catering Services
FCO,FCO,07/03/2017,95,"40,275.07",ADBLU INTERNATIONAL LTD,Repairs And Refurbishment: Works Residential
FCO,FCO,16/03/2017,7082-04,"40,195.56",ADAM SMITH INTERNATIONAL,Programme Spend (Oracle Projects Control Account)
FCO,FCO,23/03/2017,25084,"40,182.57",BRIGHTWAY TRADING LLC,Unscheduled repairs to building infrastructure
FCO,FCO,03/03/2017,UKVI001010317,"40,144.36",SCHOOL,Schooling for Children at Post
FCO,FCO,27/03/2017,3780053240,"40,134.00",COMPUTACENTER UK LTD,IT/IS Consultancy
FCO,FCO,22/03/2017,6060325,"40,128.00",FCO SERVICES,Assets Under Construction (Oracle PA Control Account)
FCO,FCO,17/03/2017,7040-10,"40,058.66",ADAM SMITH INTERNATIONAL,Programme Spend (Oracle Projects Control Account)
FCO,FCO,22/03/2017,57-17066-0707 8 March 2017A,"40,014.26",AETNA,Multiple Accounts
FCO,FCO,02/03/2017,6060023,"40,000.00",FCO SERVICES,Assets Under Construction (Oracle PA Control Account)
FCO,FCO,14/03/2017,300064275,"40,000.00",DFID DEPT INTERNATIONAL DEVELOPMENT,Payments On Behalf Of Other External Orgns
FCO,FCO,22/03/2017,Q_FY1617,"40,000.00",DELOITTE TOUCHE FINANCIAL ADVISORY SERVICES LIMITED,Programme Spend (Oracle Projects Control Account)
FCO,FCO,24/03/2017,KH_07_220317,"40,000.00",ICAN,Programme Spend (Oracle Projects Control Account)
FCO,FCO,28/03/2017,2017_03_22_SCU_001,"40,000.00",INTERNATIONAL ADVISORY SERVICES,Programme Spend (Oracle Projects Control Account)
FCO,FCO,31/03/2017,19660,"40,000.00",CM GROUP LTD,Training Courses
FCO,FCO,13/03/2017,1199,"39,970.00",AXIOM INTERNATIONAL LTD,Programme Spend (Oracle Projects Control Account)
FCO,FCO,13/03/2017,837,"39,948.61",DMS AFRICA,Construction Project more than 10k
FCO,FCO,27/03/2017,468357,"39,892.68",VODAFONE LTD CABLE AND WIRELESS UK,Telephone line and equipment rental charges
FCO,FCO,23/03/2017,91751427,"39,783.70",HYDROGRAPHIC OFFICE,Programme Spend (Oracle Projects Control Account)
FCO,FCO,13/03/2017,3780052861,"39,715.71",COMPUTACENTER UK LTD,Information Systems Implementation
FCO,FCO,29/03/2017,603,"39,636.88",MUSLIM ALI SAJAD,Recharge Suspense Account (Oracle PA Control Account)
FCO,FCO,08/03/2017,ADM/2017/07,"39,635.00",UNDP CONTRIBUTIONS,Programme Spend (Oracle Projects Control Account)
FCO,FCO,30/03/2017,6976-13/1,"39,625.96",ADAM SMITH INTERNATIONAL,Programme Spend (Oracle Projects Control Account)
FCO,FCO,06/03/2017,6059491,"39,583.26",FCO SERVICES,Assets Under Construction (Oracle PA Control Account)
FCO,FCO,16/03/2017,2017-H-102,"39,579.54",HOLDING IMMOBILIARE PALLAVICINI SPA,Rental Payments - residential
FCO,FCO,23/03/2017,119640,"39,532.00",UNIVERSITY OF READING,Training Courses
FCO,FCO,13/03/2017,6175-POE-SKS,"39,420.41",ISS FACILITY SERVICES LTD FCO OP - POE,Multiple Accounts
FCO,FCO,13/03/2017,161437/GOV/2017/206,"39,387.00",OECD,Programme Spend (Oracle Projects Control Account)
FCO,FCO,22/03/2017,6060224,"39,310.10",FCO SERVICES,GH/VIP Grant in Aid
FCO,FCO,24/03/2017,950309846,"39,285.00",ENGIE LIMITED,Construction Project more than 10k
FCO,FCO,10/03/2017,557,"39,267.08",AKTIS STRATEGY,Programme Spend (Oracle Projects Control Account)
FCO,FCO,24/03/2017,2.60E+12,"39,203.50",CAPGEMINI UK PLC,Specialist Contractors
FCO,FCO,21/03/2017,INV126-003163,"39,135.46",G4S RISK MANAGEMENT LTD,Programme Spend (Oracle Projects Control Account)
FCO,FCO,21/03/2017,INV126-003169,"39,135.46",G4S RISK MANAGEMENT LTD,Programme Spend (Oracle Projects Control Account)
FCO,FCO,23/03/2017,BHC INDIA STAFF PROVIDENT FUNDMAR17,"39,062.47",BHC INDIA STAFF PROVIDENT FUND,Multiple Accounts
FCO,FCO,28/03/2017,24-Mar-17,"38,976.66",THE TRADE PARTNERSHIP,Programme Spend (Oracle Projects Control Account)
FCO,FCO,30/03/2017,167/2017,"38,956.30",IOM INTERNATIONAL ORG FOR MIGRATION,Programme Spend (Oracle Projects Control Account)
FCO,FCO,29/03/2017,EL_INDEMNITYCT_230317,"38,884.42",CARPA,Le Staff Pay
FCO,FCO,31/03/2017,X-HB-27.03.2017-1,"38,800.70",PICKFORDS MOVE MANAGEMENT LTD,Heavy Baggage
FCO,FCO,10/03/2017,2601598-2017,"38,713.81",SECURITAS SAC,Local Guards
FCO,FCO,02/03/2017,Mar-17,"38,692.36",WOMEN IN FRONT,Programme Spend (Oracle Projects Control Account)
FCO,FCO,24/03/2017,6060384,"38,600.00",FCO SERVICES,Assets Under Construction (Oracle PA Control Account)
FCO,FCO,13/03/2017,1702-G150-333,"38,525.85",OVERSEAS SUPPLY SERVICES LTD,UK Guarding Contracts Overseas
FCO,FCO,07/03/2017,15,"38,301.13",INTERNATIONAL BUREAU OF EXPOSITIONS,Programme Spend (Oracle Projects Control Account)
FCO,FCO,20/03/2017,57-17073-0742 15 March 2017,"38,221.39",AETNA,Multiple Accounts
FCO,FCO,08/03/2017,6060083,"38,147.58",FCO SERVICES,Assets Under Construction (Oracle PA Control Account)
FCO,FCO,10/03/2017,35,"38,117.20",MOONSHOT CVE LTD,Programme Spend (Oracle Projects Control Account)
FCO,FCO,10/03/2017,119,"38,084.57",NAJMI SONS AND BROTHERS LTD,Fuel Oil Residential
FCO,FCO,27/03/2017,17629,"38,043.41",UNIVERSITY OF THE WESTERN CAPE,Programme Spend (Oracle Projects Control Account)
FCO,FCO,10/03/2017,0217_BR-24,"37,977.72",INTERSERVE FM LTD,Multiple Accounts
FCO,FCO,31/03/2017,170317A,"37,943.64",BBC MEDIA ACTION,Programme Spend (Oracle Projects Control Account)
FCO,FCO,24/03/2017,P0152-06(2016-22),"37,937.00",INTERNATIONAL IDEA,Programme Spend (Oracle Projects Control Account)
FCO,FCO,13/03/2017,KNINV027875,"37,853.88",G4S SECURITY SERVICE DRC SPRL,Local Guards
FCO,FCO,02/03/2017,6060018,"37,737.92",FCO SERVICES,Assets Under Construction (Oracle PA Control Account)
FCO,FCO,29/03/2017,964,"37,724.79",PROTECTION GROUP INTERNATIONAL,Programme Spend (Oracle Projects Control Account)
FCO,FCO,15/03/2017,7757475,"37,688.26",FOREIGN AFFAIRS AND INTERNATIONAL TRADE CANADA,Multiple Accounts
FCO,FCO,09/03/2017,6059686,"37,603.00",FCO SERVICES,Assets Under Construction (Oracle PA Control Account)
FCO,FCO,31/03/2017,250017819,"37,565.41",INFRASTRUCTURE AND PROJECTS AUTHORITY,Programme Spend (Oracle Projects Control Account)
FCO,FCO,24/03/2017,937,"37,564.78",DIPSERVICE,Rental Payments - non residential
FCO,FCO,01/03/2017,567354,"37,538.72",TURNER AND TOWNSEND PROPERTY SERVICES,Assets Under Construction (Oracle PA Control Account)
FCO,FCO,06/03/2017,03-Mar-17,"37,500.00",THE GLOBAL CENTRE FOR THE RESPONSIBILITY TO PROTECT,Programme Spend (Oracle Projects Control Account)
FCO,FCO,16/03/2017,3343,"37,368.15",NI CO OPERATION OVERSEAS NI CO LTD,Programme Spend (Oracle Projects Control Account)
FCO,FCO,23/03/2017,S00001410,"37,278.00",GREENSHIELDS COWIE + CO LTD,Assets Under Construction (Oracle PA Control Account)
FCO,FCO,21/03/2017,SL-FCO-DDR7,"37,180.00",LHASSA CONSULTING FZE,Programme Spend (Oracle Projects Control Account)
FCO,FCO,13/03/2017,6181-POE-THB,"37,177.68",ISS FACILITY SERVICES LTD FCO OP - POE,Multiple Accounts
FCO,FCO,24/03/2017,230317,"37,051.89",ACCOMODATION PROVIDER,Rental Payments - residential
FCO,FCO,02/03/2017,JX57463,"36,890.00",VODAFONE LTD,Multiple Accounts
FCO,FCO,09/03/2017,03.17.02,"36,828.00",SHEPHARD TRAVIS TEXTILE CONSERVATION STUDIO LTD,Residential Property Services
FCO,FCO,17/03/2017,17/17,"36,807.00",CENTRE FOR POLITICAL & DIPLOMATIC STUDIES,Training Courses
FCO,FCO,07/03/2017,517,"36,695.86",SOLUTIONS STRATEGY RESEARCH FACILITATION LTD,Research Budget
FCO,FCO,29/03/2017,2017/024,"36,678.00",SUSTAINABLE CRIMINAL JUSTICE SOLUTIONS,Programme Spend (Oracle Projects Control Account)
FCO,FCO,23/03/2017,SI-21737,"36,614.00",CONSOLIDATED PR LTD,Public Relations
FCO,FCO,29/03/2017,DRC2017004,"36,581.00",TRIAL,Programme Spend (Oracle Projects Control Account)
FCO,FCO,31/03/2017,3780053800,"36,469.65",COMPUTACENTER UK LTD,Assets Under Construction (Oracle PA Control Account)
FCO,FCO,29/03/2017,22-Mar-17,"36,397.33",ACCOMODATION PROVIDER,Rental Payments - residential
FCO,FCO,23/03/2017,7486761,"36,382.00",DEFENCE BUSINESS SERVICES FINANCE,Misc Security Payments
FCO,FCO,13/03/2017,10-Mar-17,"36,260.00",OXFAM BRASIL,Programme Spend (Oracle Projects Control Account)
FCO,FCO,30/03/2017,6060516,"36,151.46",FCO SERVICES,Construction Project more than 10k
FCO,FCO,17/03/2017,11659,"36,147.26",DIPLOMATIC MISSION SUPPLIES LTD,Recharge Suspense Account (Oracle PA Control Account)
FCO,FCO,31/03/2017,29-Mar-17,"36,102.00",IOM INTERNATIONAL ORG FOR MIGRATION,Programme Spend (Oracle Projects Control Account)
FCO,FCO,06/03/2017,PILPG-011,"35,957.98",PUBLIC INTERNATIONAL LAW AND POLICY GROUP,Programme Spend (Oracle Projects Control Account)
FCO,FCO,22/03/2017,6060320,"35,950.00",FCO SERVICES,Residential Property Services
FCO,FCO,14/03/2017,24-247,"35,883.34",HEALIX INTERNATIONAL LTD,Hospital/Specialist Treatment
FCO,FCO,06/03/2017,18010300-00,"35,862.63",R AND M ELECTRICAL GROUP LTD,Estates - Other Machinery and Equipment
FCO,FCO,16/03/2017,A0659662,"35,544.15",PACIFIC THAI MOTORSPORT CO LTD,Recharge Suspense Account (Oracle PA Control Account)
FCO,FCO,17/03/2017,433,"35,282.14",ENGINEERING DIMENSION CONTRACTING,Repairs And Refurbishment: Fees Non-Residential
FCO,FCO,31/03/2017,I-HB-27.03.2017-2,"35,249.38",PICKFORDS MOVE MANAGEMENT LTD,Heavy Baggage
FCO,FCO,20/03/2017,3344,"35,161.67",NI CO OPERATION OVERSEAS NI CO LTD,Programme Spend (Oracle Projects Control Account)
FCO,FCO,15/03/2017,VAT218,"35,161.07",EUROPEAN PARLIAMENT,Protocol - General VAT Refunds to Other Organisations
FCO,FCO,17/03/2017,INV-0169,"35,049.57",INTERNATIONAL GOVERNANCE AND RISK LIMITED GOVRISK,Programme Spend (Oracle Projects Control Account)
FCO,FCO,20/03/2017,90284240,"35,041.70",BRITISH COUNCIL,Programme Spend (Oracle Projects Control Account)
FCO,FCO,22/03/2017,ETQ2017/002,"35,000.00",GKN AEROSPACE SERVICES LTD,Programme Spend (Oracle Projects Control Account)
FCO,FCO,30/03/2017,33259,"34,976.00",WESTMINSTER FOUNDATION FOR DEMOCRACY,Programme Spend (Oracle Projects Control Account)
FCO,FCO,24/03/2017,CHN17QT4,"34,926.17",CHARITY COMMISSION ENGLAND AND WALES,Programme Spend (Oracle Projects Control Account)
FCO,FCO,24/03/2017,950312973,"34,905.00",ENGIE LIMITED,Construction Project more than 10k
FCO,FCO,03/03/2017,IPE/INT/PF/2016/00252,"34,870.84",IPE GLOBAL LIMITED,Programme Spend (Oracle Projects Control Account)
FCO,FCO,08/03/2017,C-70-16/17,"34,830.79",BRITISH COUNCIL,Recharge Suspense Account (Oracle PA Control Account)
FCO,FCO,24/03/2017,353400178,"34,800.00",ICF CONSULTING LTD,Programme Spend (Oracle Projects Control Account)
FCO,FCO,30/03/2017,353400179,"34,800.00",ICF CONSULTING LTD,Programme Spend (Oracle Projects Control Account)
FCO,FCO,31/03/2017,F11201/19-22MAR17,"34,664.64",MARSH UK LTD,Programme Spend (Oracle Projects Control Account)
FCO,FCO,23/03/2017,BRITISH2-01APR17,"34,584.70",ONE SANSOME PROPERTY LLC,Multiple Accounts
FCO,FCO,23/03/2017,MARSEC1415NDP2701-22MAR17,"34,500.00",UNITED NATIONS,Programme Spend (Oracle Projects Control Account)
FCO,FCO,22/03/2017,8313768,"34,485.52",BAKER DONELSON,Programme Spend (Oracle Projects Control Account)
FCO,FCO,29/03/2017,UAAANNUALRENTCHARGERSFOR604BAYNUNAHTOWERS,"34,417.24",PRIVATE PROPERTY MANAGEMENT,Multiple Accounts
FCO,FCO,13/03/2017,2.60E+12,"34,296.50",CAPGEMINI UK PLC,Assets Under Construction (Oracle PA Control Account)
FCO,FCO,02/03/2017,7009308-14-MAR-17,"34,273.03",THE ROYAL BANK OF SCOTLAND,Travel Package Advance Overseas Posting (Credit Card Payments Only)
FCO,FCO,16/03/2017,6800112370,"34,142.73",METROPOLITAN POLICE AUTHORITY,Programme Spend (Oracle Projects Control Account)
FCO,FCO,03/03/2017,2.11E+11,"34,084.53",DIPLOMAT FREIGHT SERVICES LTD(DFS),Multiple Accounts
FCO,FCO,29/03/2017,2.11E+11,"34,084.53",DIPLOMAT FREIGHT SERVICES LTD(DFS),Multiple Accounts
FCO,FCO,27/03/2017,CDMUST160032,"34,000.00",UNITED NATIONS,Programme Spend (Oracle Projects Control Account)
FCO,FCO,17/03/2017,16-Mar-17,"33,925.14",BASSAM MOHD KHATIB,Recharge Suspense Account (Oracle PA Control Account)
FCO,FCO,17/03/2017,90284243,"33,912.10",BRITISH COUNCIL,Programme Spend (Oracle Projects Control Account)
FCO,FCO,06/03/2017,6060038,"33,893.46",FCO SERVICES,Air Freight Dip Bags - Freight & Clearance Charges
FCO,FCO,20/03/2017,17-Mar-17,"33,755.18",DEFENCE BUSINESS SERVICES FINANCE,Customer Refund Account
FCO,FCO,27/03/2017,27-Feb-17,"33,646.32",CAFOD,Programme Spend (Oracle Projects Control Account)
FCO,FCO,29/03/2017,24-Mar-17,"33,638.74",MARCH,Programme Spend (Oracle Projects Control Account)
FCO,FCO,23/03/2017,350009444,"33,634.90",DEPARTMENT FOR EDUCATION,Manned Guarding Services
FCO,FCO,10/03/2017,GS_MAR 2017_070317,"33,617.93",CHP CASHBOX TOP UP,Interbank Transfers/Withdrawals
FCO,FCO,15/03/2017,178,"33,596.00",PROFILE AWARE LIMITED,Recharge Suspense Account (Oracle PA Control Account)
FCO,FCO,17/03/2017,01/05/7082,"33,561.30",ADAM SMITH INTERNATIONAL,Programme Spend (Oracle Projects Control Account)
FCO,FCO,27/03/2017,162654,"33,558.76",POHANKA CHEVROLET,Recharge Suspense Account (Oracle PA Control Account)
FCO,FCO,27/03/2017,3780053246,"33,557.18",COMPUTACENTER UK LTD,IT/IS Consultancy
FCO,FCO,09/03/2017,TF01-08MAR17,"33,513.25",TEARFUND,Programme Spend (Oracle Projects Control Account)
FCO,FCO,31/03/2017,170317C,"33,510.64",BBC MEDIA ACTION,Programme Spend (Oracle Projects Control Account)
FCO,FCO,13/03/2017,6172-POE-IDJ,"33,465.84",ISS FACILITY SERVICES LTD FCO OP - POE,Multiple Accounts
FCO,FCO,31/03/2017,156467,"33,431.34",NELSON WORLDWIDE INC,Assets Under Construction (Oracle PA Control Account)
FCO,FCO,27/03/2017,MAR-17110,"33,400.73",EASY CONNECT,Property Maintenance Overseas Non Residential
FCO,FCO,27/03/2017,4,"33,269.30",JUSTICE FOR LEGAL AID,Programme Spend (Oracle Projects Control Account)
FCO,FCO,31/03/2017,41986,"33,235.21",FURNITURE PALACE INTNL K LTD,Recharge Suspense Account (Oracle PA Control Account)
FCO,FCO,22/03/2017,6060251,"33,142.31",FCO SERVICES,Air Freight Dip Bags - Freight & Clearance Charges
FCO,FCO,23/03/2017,22-Mar-17,"33,130.27",CENTRE FOR SOCIAL GOVERNANCE RESEARCH,Programme Spend (Oracle Projects Control Account)
FCO,FCO,08/03/2017,1460,"33,040.00",OROSTREAM INTERNATIONAL CONTRACTS LTD,Site Maintenance
FCO,FCO,02/03/2017,JS_HMRCTUITION2017/18_10317,"33,015.48",SCHOOL,Recharge Suspense Account (Oracle PA Control Account)
FCO,FCO,28/03/2017,103190,"33,000.00",REDSNAPPER LEARNING LTD,Programme Spend (Oracle Projects Control Account)
FCO,FCO,22/03/2017,20170321001,"32,887.42",AGILE BYTE LIMITED,IT/IS Consultancy
FCO,FCO,17/03/2017,15-178,"32,838.09",GLOBAL PARTNERS GOVERNANCE PRACTICE LTD,Programme Spend (Oracle Projects Control Account)
FCO,FCO,22/03/2017,6060262,"32,832.32",FCO SERVICES,Air Freight Dip Bags - Freight & Clearance Charges
FCO,FCO,27/03/2017,6215,"32,736.35",WARSA ENTERPRISES PLC,Local Guards
FCO,FCO,27/03/2017,6216,"32,736.35",WARSA ENTERPRISES PLC,Local Guards
FCO,FCO,21/03/2017,LAG37200494,"32,701.00",PRICEWATERHOUSE COOPERS ASSOCIATES AFRICA LTD,Programme Spend (Oracle Projects Control Account)
FCO,FCO,24/03/2017,6060377,"32,659.00",FCO SERVICES,Assets Under Construction (Oracle PA Control Account)
FCO,FCO,14/03/2017,11637,"32,631.00",DIPLOMATIC MISSION SUPPLIES LTD,"Purchase of Furniture, Fittings and Domestic Appliances"
FCO,FCO,09/03/2017,0217_PA2-1,"32,565.29",INTERSERVE FM LTD,Recharge Suspense Account (Oracle PA Control Account)
FCO,FCO,22/03/2017,5501393379,"32,516.13",KPMG LLP,Training Courses
FCO,FCO,22/03/2017,21MAR17A,"32,515.36",KOLEKTIV DOO,Programme Spend (Oracle Projects Control Account)
FCO,FCO,10/03/2017,N�LH/17/3,"32,480.56",OCONNELL WALSHE  AND PARTNERS LTD,Multiple Accounts
FCO,FCO,31/03/2017,ACHAWAFAMBIRA_01_270317,"32,453.95",ANNA CHAWAFAMBIRA,Multiple Accounts
FCO,FCO,02/03/2017,HRYCROFT4905501,"32,416.39",SCHOOL,Schooling for Children at Post
FCO,FCO,13/03/2017,1276,"32,404.47",TODD RESEARCH LTD,Estates - Other Machinery and Equipment
FCO,FCO,20/03/2017,43/Inv-rev/KPPOD/02/2017,"32,357.38",KOMISI PEMANTAUAN PELAKSA OTONOMI,Programme Spend (Oracle Projects Control Account)
FCO,FCO,15/03/2017,470007213,"32,268.12",CARBON TRUST ADVISORY LTD,Programme Spend (Oracle Projects Control Account)
FCO,FCO,09/03/2017,6060102,"32,263.32",FCO SERVICES,Assets Under Construction (Oracle PA Control Account)
FCO,FCO,17/03/2017,34-14MAR17,"32,211.00",REPRIEVE,Programme Spend (Oracle Projects Control Account)
FCO,FCO,02/03/2017,6800112189,"32,210.69",MAYORS OFFICE FOR POLICING AND CRIME MOPC,Programme Spend (Oracle Projects Control Account)
FCO,FCO,14/03/2017,6128-VAR-IDJ,"32,102.14",ISS FACILITY SERVICES LTD FCO OP,FM Interserve BES Maintenance
FCO,FCO,29/03/2017,MRMARWANDILAPIDATIONPAYMENT,"32,079.56",MUSAED ABDULLAH MOHAMMED MARWAN,Dilapidations Residential
FCO,FCO,20/03/2017,SS/4883/17,"32,067.86",SEBHATU AND SONS PROPERTY ADMINISTRATION AND SECURITY SERVICE PLC,Local Guards
FCO,FCO,21/03/2017,SS/4908/17D,"32,067.86",SEBHATU AND SONS PROPERTY ADMINISTRATION AND SECURITY SERVICE PLC,Local Guards
FCO,FCO,14/03/2017,DRC2017003,"32,065.00",TRIAL,Programme Spend (Oracle Projects Control Account)
FCO,FCO,14/03/2017,WAA2.17.01.0027,"32,000.00",PT GARUDA INDONESIA,Programme Spend (Oracle Projects Control Account)
FCO,FCO,30/03/2017,6060566,"31,892.06",FCO SERVICES,Assets Under Construction (Oracle PA Control Account)
FCO,FCO,13/03/2017,1200,"31,883.00",AXIOM INTERNATIONAL LTD,Programme Spend (Oracle Projects Control Account)
FCO,FCO,28/03/2017,1293,"31,831.69",RAPPLER INC,Programme Spend (Oracle Projects Control Account)
FCO,FCO,24/03/2017,52467,"31,801.00",STONEWALL EQUALITY LTD,Programme Spend (Oracle Projects Control Account)
FCO,FCO,29/03/2017,3780053311,"31,762.34",COMPUTACENTER UK LTD,Assets Under Construction (Oracle PA Control Account)
FCO,FCO,14/03/2017,6134-VAR-PHM,"31,598.79",ISS FACILITY SERVICES LTD FCO OP,FM Interserve BES Maintenance
FCO,FCO,29/03/2017,2631,"31,572.23",JUDIN COMBRINCK INC,Rent Deposits
FCO,FCO,06/03/2017,6059366,"31,483.50",FCO SERVICES,Information Systems Maintenance
FCO,FCO,13/03/2017,3881116874,"31,437.68",COMPUTACENTER UK LTD,IT/IS Consultancy
FCO,FCO,27/03/2017,208291/3217.005,"31,345.79",MAKARIM AND TAIRA S,Costs Associated with the Disposal of Capitalised Assets
FCO,FCO,21/03/2017,6800112412,"31,341.56",MAYORS OFFICE FOR POLICING AND CRIME MOPC,Programme Spend (Oracle Projects Control Account)
FCO,FCO,29/03/2017,2.60E+12,"31,270.00",CAPGEMINI UK PLC,Specialist Contractors
FCO,FCO,14/03/2017,10-Mar-17,"31,266.76",ROLFE MAZDA,Assets Under Construction (Oracle PA Control Account)
FCO,FCO,08/03/2017,NCAER/2016-17/01/62,"31,205.00",NATIONAL COUNCIL OF APPLIED ECONOMIC RESEARCH,Programme Spend (Oracle Projects Control Account)
FCO,FCO,16/03/2017,90/2017,"31,151.59",TERMOIDRAULICA ELISEI DI ELISEI MARCO,Assets Under Construction (Oracle PA Control Account)
FCO,FCO,17/03/2017,16-Mar-17,"31,140.00",DEMOCRATIC PROGRESS INSTITUTE,Programme Spend (Oracle Projects Control Account)
FCO,FCO,15/03/2017,SS/4786/17F,"31,138.37",SEBHATU AND SONS PROPERTY ADMINISTRATION AND SECURITY SERVICE PLC,Local Guards
FCO,FCO,21/03/2017,SL-FCO-DDR6,"31,080.00",LHASSA CONSULTING FZE,Programme Spend (Oracle Projects Control Account)
FCO,FCO,29/03/2017,105350,"31,070.03",SECURITY SERVICES GROUP,Misc Security Payments
FCO,FCO,17/03/2017,SIN000518,"31,007.00",NATIONAL AUDIT OFFICE,Programme Spend (Oracle Projects Control Account)
FCO,FCO,30/03/2017,dcal 30-MAR-2017 1646,"30,982.44",THE ROYAL BANK OF SCOTLAND,Multiple Accounts
FCO,FCO,15/03/2017,08-Mar-17,"30,977.50",SHPI HOLDINGS LTD,Programme Spend (Oracle Projects Control Account)
FCO,FCO,29/03/2017,UAARENTAlYASATVILLA43-22MAR17,"30,955.86",FIRST GULF PROPERTIES,Rental Payments - residential
FCO,FCO,22/03/2017,33255,"30,835.00",WESTMINSTER FOUNDATION FOR DEMOCRACY,Programme Spend (Oracle Projects Control Account)
FCO,FCO,08/03/2017,X114098,"30,789.64",CAPITA BUSINESS SERVICES LTD,Training Courses
FCO,FCO,06/03/2017,57-17059-3022 1 MAR 2017,"30,777.20",AETNA,Multiple Accounts
FCO,FCO,23/03/2017,PASMAR17,"30,753.59",CONTRIBUTORY PROVIDENT FUND,Multiple Accounts
FCO,FCO,03/03/2017,SL/006721/CO/2016-17,"30,739.98",CONFEDERATION OF INDIAN INDUSTRIES,Programme Spend (Oracle Projects Control Account)
FCO,FCO,21/03/2017,93,"30,726.13",HAIM SHANI,Estates Management Services
FCO,FCO,24/03/2017,2017-0321US,"30,712.00",SALZBURG GLOBAL SEMINAR,Programme Spend (Oracle Projects Control Account)
FCO,FCO,10/03/2017,132373158,"30,672.91",MERCEDES EUROPA,Assets Under Construction (Oracle PA Control Account)
FCO,FCO,01/03/2017,dcal 01-MAR-2017 1349,"30,524.65",THE ROYAL BANK OF SCOTLAND,Multiple Accounts
FCO,FCO,20/03/2017,13-Mar-17,"30,437.22",JORDAN MODERN OIL AND FUEL SERVICES,Multiple Accounts
FCO,FCO,06/03/2017,1611001,"30,427.85",PHILIPPINE COMPETITION COMMISSION,Programme Spend (Oracle Projects Control Account)
FCO,FCO,24/03/2017,90289777,"30,360.00",BRITISH COUNCIL,Programme Spend (Oracle Projects Control Account)
FCO,FCO,20/03/2017,X114368,"30,354.00",CAPITA BUSINESS SERVICES LTD,"Commissioning New Syllabi, Training and Exam Material"
FCO,FCO,23/03/2017,X114483,"30,354.00",CAPITA BUSINESS SERVICES LTD,Language Exams (excl Hays)
FCO,FCO,23/03/2017,33254,"30,325.99",WESTMINSTER FOUNDATION FOR DEMOCRACY,Programme Spend (Oracle Projects Control Account)
FCO,FCO,14/03/2017,GAC-384-AGM,"30,316.57",ALLIANZ,Multiple Accounts
FCO,FCO,20/03/2017,160614/DAF/2017/212,"30,266.82",OECD,Programme Spend (Oracle Projects Control Account)
FCO,FCO,07/03/2017,205,"30,253.28",CARNEGIE ENDOWNMENT FOR INTERNATIONAL PEACE,Programme Spend (Oracle Projects Control Account)
FCO,FCO,09/03/2017,1604361,"30,104.69",GRUP MIM MUS INS TUR AS,Recharge Suspense Account (Oracle PA Control Account)
FCO,FCO,09/03/2017,1603825,"30,104.69",GRUP MIM MUS INS TUR AS,Recharge Suspense Account (Oracle PA Control Account)
FCO,FCO,09/03/2017,1604128,"30,104.69",GRUP MIM MUS INS TUR AS,Recharge Suspense Account (Oracle PA Control Account)
FCO,FCO,10/03/2017,SH17001245,"30,057.82",TEAM 3 LIMITED,Local Guards
FCO,FCO,06/03/2017,103,"30,032.88",NEW ERA OIL AND GAS,Fuel Oil Residential
FCO,FCO,01/03/2017,3881104895,"30,026.08",COMPUTACENTER UK LTD,Assets Under Construction (Oracle PA Control Account)
FCO,FCO,10/03/2017,0217_PR-8,"30,025.03",INTERSERVE FM LTD,Construction Project more than 10k
FCO,FCO,01/03/2017,INV-MEM0298,"30,000.00",CANNING HOUSE LTD,Programme Spend (Oracle Projects Control Account)
FCO,FCO,01/03/2017,6059948,"30,000.00",FCO SERVICES,Information Systems Maintenance
FCO,FCO,07/03/2017,025A/16,"30,000.00",CLEARTHINK LTD,Programme Spend (Oracle Projects Control Account)
FCO,FCO,14/03/2017,1441,"30,000.00",MINISTRY OF JUSTICE,Programme Spend (Oracle Projects Control Account)
FCO,FCO,27/03/2017,IODCCT_001_240317,"30,000.00",AUSTRALIAN HIGH COMMISSION,Miscellaneous Receipts
FCO,FCO,27/03/2017,4030377,"30,000.00",KPMG ADVISORY SERVICES PVT LTD,Programme Spend (Oracle Projects Control Account)
FCO,FCO,30/03/2017,148/2017,"30,000.00",IOM INTERNATIONAL ORG FOR MIGRATION,Programme Spend (Oracle Projects Control Account)
FCO,FCO,02/03/2017,117896,"29,903.25",RJ TEKNIIKKA OY,Unscheduled repairs to building infrastructure
FCO,FCO,21/03/2017,117906,"29,903.25",RJ TEKNIIKKA OY,Unscheduled repairs to building infrastructure
FCO,FCO,29/03/2017,UAAETHDTWR41003,"29,809.35",ETIHAD TOWERS FOR REAL ESTATE,Multiple Accounts
FCO,FCO,10/03/2017,1589388,"29,787.32",RSM RISK ASSURANCE SERVICES LLP,Specialist Contractors
FCO,FCO,17/03/2017,11642,"29,775.38",DIPLOMATIC MISSION SUPPLIES LTD,"Purchase of Furniture, Fittings and Domestic Appliances"
FCO,FCO,07/03/2017,F-177/2017,"29,741.64",SOMEM,Property Maintenance Overseas Residential
FCO,FCO,22/03/2017,80258730581,"29,697.85",VILLA SAN MICHELE SRL,Accommodation
FCO,FCO,28/03/2017,2017-0033/INV/JCLEC,"29,682.73",JCLEC FOUNDATION,Programme Spend (Oracle Projects Control Account)
FCO,FCO,24/03/2017,21-Mar-17,"29,645.56",Abdulsalam Al Rafi Group LLC,Recharge Suspense Account (Oracle PA Control Account)
FCO,FCO,23/03/2017,12MAR17C,"29,629.80",LILLEKER BROTHERS NIGERIA,Recharge Suspense Account (Oracle PA Control Account)
FCO,FCO,13/03/2017,6250984,"29,627.00",PUBLIC HEALTH ENGLAND,Programme Spend (Oracle Projects Control Account)
FCO,FCO,24/03/2017,950312493,"29,600.00",ENGIE LIMITED,Construction Project more than 10k
FCO,FCO,21/03/2017,2529,"29,588.07",AQUATERA LTD,Programme Spend (Oracle Projects Control Account)
FCO,FCO,30/03/2017,250017892,"29,500.00",CABINET OFFICE,Programme Spend (Oracle Projects Control Account)
FCO,FCO,23/03/2017,22-Mar-17,"29,481.78",ABU DHABI NATIONAL PROPERTY COMPANY PJSC,Multiple Accounts
FCO,FCO,29/03/2017,UAA-SHTWR503,"29,481.78",KIDMAH LLC,Multiple Accounts
FCO,FCO,17/03/2017,55,"29,473.09",JENAN ASIA COMPANY,Construction Project more than 10k
FCO,FCO,01/03/2017,03/04-052/17,"29,395.30",CNTR ISTRAZV SUPROSTVLJANJA KRIMINL,Programme Spend (Oracle Projects Control Account)
FCO,FCO,22/03/2017,15-Mar-17,"29,380.28",INTERNATIONAL FOUNDATION FOR CRIME PREVENTION AND VICTIM CARE (PCVC),Programme Spend (Oracle Projects Control Account)
FCO,FCO,17/03/2017,H.E-BDHC-0156,"29,337.24",HARIS ENTERPRISES PVT LTD,Local Guards
FCO,FCO,14/03/2017,144552,"29,238.00",TFPL LTD,Specialist Contractors
FCO,FCO,30/03/2017,1596103,"29,155.50",RSM RISK ASSURANCE SERVICES LLP,Specialist Contractors
FCO,FCO,30/03/2017,6060179,"29,072.18",FCO SERVICES,Property Maintenance Overseas Non Residential
FCO,FCO,14/03/2017,461/16,"29,059.28",UNMCK,Recharge Suspense Account (Oracle PA Control Account)
FCO,FCO,22/03/2017,6060322,"29,057.00",FCO SERVICES,Assets Under Construction (Oracle PA Control Account)
FCO,FCO,27/03/2017,81348710,"29,054.20",DX NETWORK SERVICES,Postal Services
FCO,FCO,23/03/2017,1300439,"28,998.21",THE SECRETARY GENERAL OF THE OSCE,Programme Spend (Oracle Projects Control Account)
FCO,FCO,10/03/2017,0217_HP-17,"28,997.77",INTERSERVE FM LTD,Construction Project more than 10k
FCO,FCO,23/03/2017,17415,"28,995.00",KELTBRAY ENVIRONMENTAL SOLUTIONS,Construction Project more than 10k
FCO,FCO,22/03/2017,3/721,"28,919.20",FUTURE CITIES CATAPULT,Programme Spend (Oracle Projects Control Account)
FCO,FCO,28/03/2017,HTC/PRO-INV-FAB/BHC-ISID/17,"28,879.12",HINO TWIN CITY,Assets Under Construction (Oracle PA Control Account)
FCO,FCO,17/03/2017,BAGHD/020317/2,"28,835.18",KOIZA INTERNATIONAL LTD,"Purchase of Furniture, Fittings and Domestic Appliances"
FCO,FCO,29/03/2017,EL_INDEMNITYNHA_230317,"28,818.38",CARPA,Le Staff Pay
FCO,FCO,08/03/2017,72197,"28,800.00",BIP SOLUTIONS,Programme Spend (Oracle Projects Control Account)
FCO,FCO,30/03/2017,20170329001,"28,800.00",AGILE BYTE LIMITED,Information Systems Maintenance
FCO,FCO,22/03/2017,INV-60713-R8B2Q2,"28,780.99",HYUNDAI MOTORS NIG LTD,Recharge Suspense Account (Oracle PA Control Account)
FCO,FCO,22/03/2017,INV-60709-C6J2D3,"28,780.99",HYUNDAI MOTORS NIG LTD,Recharge Suspense Account (Oracle PA Control Account)
FCO,FCO,01/03/2017,9524005134,"28,779.31",JAGUAR LAND ROVER LIMITED,RALON ODA Capital Purchases Only
FCO,FCO,17/03/2017,MBIE-0332/0317,"28,755.32",HIGH SHINE GATE CLEANING,Property Maintenance Overseas Non Residential
FCO,FCO,06/03/2017,6059360,"28,737.00",FCO SERVICES,Assets Under Construction (Oracle PA Control Account)
FCO,FCO,13/03/2017,6165-POE-AUS,"28,649.55",ISS FACILITY SERVICES LTD FCO OP - POE,Multiple Accounts
FCO,FCO,08/03/2017,3121436,"28,616.75",NOMURA RESEARCH INSTITUTE,Programme Spend (Oracle Projects Control Account)
FCO,FCO,22/03/2017,1270518,"28,578.75",KINGALARM SERVICES LIMITED,Recharge Suspense Account (Oracle PA Control Account)
FCO,FCO,06/03/2017,G-SOV.17.00214,"28,540.50",GOODWOOD MOTORS NV,Assets Under Construction (Oracle PA Control Account)
FCO,FCO,31/03/2017,57-17087-0712 29 MARCH 17,"28,493.16",AETNA,Multiple Accounts
FCO,FCO,08/03/2017,BEMOS/201116,"28,457.62",KOIZA INTERNATIONAL LTD,Multiple Accounts
FCO,FCO,02/03/2017,7616780,"28,411.57",PACE FUELCARE LIMITED,Fuel Oil Non-Residential
FCO,FCO,31/03/2017,002_EWS,"28,391.07",TEARFUND,Programme Spend (Oracle Projects Control Account)
FCO,FCO,23/03/2017,THREE-FINAL-14MAR17,"28,334.00",MONTEREY INSTITUTE OF INTERNATIONAL STUDIES,Programme Spend (Oracle Projects Control Account)
FCO,FCO,17/03/2017,16-Feb-17,"28,297.21",GULZAR RAZAQ AND SHAZIA IMRAN AHMAD,Rental Payments - residential
FCO,FCO,30/03/2017,PILPG-012,"28,290.16",PUBLIC INTERNATIONAL LAW AND POLICY GROUP,Programme Spend (Oracle Projects Control Account)
FCO,FCO,31/03/2017,1101762,"28,253.47",THE SECRETARY GENERAL OF THE OSCE,Programme Spend (Oracle Projects Control Account)
FCO,FCO,10/03/2017,04-Mar-17,"28,228.36",LANKA UNITES,Programme Spend (Oracle Projects Control Account)
FCO,FCO,14/03/2017,7014-11,"28,222.92",ADAM SMITH INTERNATIONAL,Programme Spend (Oracle Projects Control Account)
FCO,FCO,14/03/2017,6114-FIX-SIN,"28,145.81",ISS FACILITY SERVICES LTD FCO OP,Multiple Accounts
FCO,FCO,08/03/2017,ETSWAHABE_01_07032017,"28,141.36",PROJET RCOSGPCSS,Programme Spend (Oracle Projects Control Account)
FCO,FCO,09/03/2017,6060106,"28,104.87",FCO SERVICES,Assets Under Construction (Oracle PA Control Account)
FCO,FCO,14/03/2017,PAYE/NI FEB17 Top Up,"28,029.51",HMRC HM REVENUE AND CUSTOMS,National Insurance (NI) (Oracle PAY Control Account)
FCO,FCO,27/03/2017,208290/3217.003,"28,014.68",MAKARIM AND TAIRA S,Costs Associated with the Disposal of Capitalised Assets
FCO,FCO,13/03/2017,NDI#1,"28,011.00",NATIONAL DEMOCRATIC INSTITUTE,Programme Spend (Oracle Projects Control Account)
FCO,FCO,20/03/2017,17.03C/FCOMALAWI,"28,000.00",TAF POWELL ASSOCIATES LIMITED,Programme Spend (Oracle Projects Control Account)
FCO,FCO,31/03/2017,22-Feb-17,"28,000.00",TONGJI UNIVERSITY,Programme Spend (Oracle Projects Control Account)
FCO,FCO,02/03/2017,7723476,"27,966.59",PACE FUELCARE LIMITED,Fuel Oil Non-Residential
FCO,FCO,28/03/2017,102949,"27,964.00",MOBILE CONTENT MANAGEMENT SOLUTIONS LTD,Programme Spend (Oracle Projects Control Account)
FCO,FCO,15/03/2017,PC_15_14317,"27,909.21",ABDUL RAHMAN ALHASSAN,Recharge Suspense Account (Oracle PA Control Account)
FCO,FCO,06/03/2017,20170224-001,"27,903.00",SOVEREIGN GLOBAL,Programme Spend (Oracle Projects Control Account)
FCO,FCO,06/03/2017,FCO17020004,"27,885.76",WILLIAMS LEA,General Information Services
FCO,FCO,09/03/2017,PIA_16944_090317,"27,863.20",PORSCHE INTER AUTO DOO POSLOVNICA,Assets Under Construction (Oracle PA Control Account)
FCO,FCO,16/03/2017,5053800,"27,822.58",GUIDANCE SOFTWARE INC,Information Systems Maintenance
FCO,FCO,06/03/2017,18007,"27,740.00",LANGUAGE SERVICES DIRECT,Language Tuition: Essential
FCO,FCO,29/03/2017,105347,"27,729.75",SECURITY SERVICES GROUP,Assets Under Construction (Oracle PA Control Account)
FCO,FCO,21/03/2017,MGS_USR557B_15MAR17,"27,688.73",BEEKMAN REGENT CONDO ASSO,Multiple Accounts
FCO,FCO,17/03/2017,947,"27,673.03",PROTECTION GROUP INTERNATIONAL,Programme Spend (Oracle Projects Control Account)
FCO,FCO,22/03/2017,6800112414,"27,656.33",MAYORS OFFICE FOR POLICING AND CRIME MOPC,Programme Spend (Oracle Projects Control Account)
FCO,FCO,09/03/2017,273W30712017,"27,540.00",ABUJA ELCTRCITY DISTRIBUTION COMPNY,Electricity Residential
FCO,FCO,15/03/2017,13-Mar-17,"27,504.90",SPHERE CHARITABLE FOUNDATION,Programme Spend (Oracle Projects Control Account)
FCO,FCO,16/03/2017,1139,"27,500.00",AFFINIS LABS LLC,Programme Spend (Oracle Projects Control Account)
FCO,FCO,28/03/2017,52468,"27,448.00",STONEWALL EQUALITY LTD,Programme Spend (Oracle Projects Control Account)
FCO,FCO,29/03/2017,3780053312,"27,296.46",COMPUTACENTER UK LTD,Assets Under Construction (Oracle PA Control Account)
FCO,FCO,29/03/2017,6,"27,268.43",AFGHANISTAN CAPACITY DEVELOPMENT AND EDUCATIONAL ORGANIZATION,Programme Spend (Oracle Projects Control Account)
FCO,FCO,15/03/2017,TED_02_140317,"27,182.22",TED UNIVERSITESI,Programme Spend (Oracle Projects Control Account)
FCO,FCO,03/03/2017,INV06002,"27,168.00",CHATHAM HOUSE,Training Courses
FCO,FCO,03/03/2017,VAT211,"27,162.32",IOM INTERNATIONAL ORG FOR MIGRATION,Protocol - General VAT Refunds to Other Organisations
FCO,FCO,31/03/2017,152703,"27,067.13",NELSON WORLDWIDE INC,Assets Under Construction (Oracle PA Control Account)
FCO,FCO,15/03/2017,3348,"27,043.00",NI CO OPERATION OVERSEAS NI CO LTD,Programme Spend (Oracle Projects Control Account)
FCO,FCO,09/03/2017,G10885,"27,038.24",G4S SECURE SOLUTIONS INT JORDAN,Local Guards
FCO,FCO,28/03/2017,571,"27,014.98",AKTIS STRATEGY,Programme Spend (Oracle Projects Control Account)
FCO,FCO,29/03/2017,EL_INDEMNITYSB_230317,"26,983.64",CARPA,Le Staff Pay
FCO,FCO,13/03/2017,SIN000226,"26,979.00",THE ASSOCIATION OF COMMONWEALTH UNIVERSITIES,Sponsorship (Income and Expenditure)
FCO,FCO,02/03/2017,1001016486,"26,955.15",BAE SYSTEMS APPLIED INTELLIGENCE LIMITED,Specialist Contractors
FCO,FCO,31/03/2017,3129071,"26,888.00",GUIDANCE SOFTWARE INC,Training Courses
FCO,FCO,21/03/2017,8828071,"26,812.00",SPP PENSION AND FORSAKRING AB,Multiple Accounts
FCO,FCO,22/03/2017,6060302,"26,810.89",FCO SERVICES,Air Freight Dip Bags - Freight & Clearance Charges
FCO,FCO,16/03/2017,EREZAO'CONNOR-SEP2017/MAY201,"26,786.43",SCHOOL,Schooling for Children at Post
FCO,FCO,29/03/2017,SI00027483,"26,680.83",SCHOOL,Schooling for Children at Post
FCO,FCO,28/03/2017,26-Mar-17,"26,662.76","CENTRE OF CRIMINAL LEGAL AID, CHINA UNIVERSITY OF POLITICAL SCIENCE AND LAW",Programme Spend (Oracle Projects Control Account)
FCO,FCO,31/03/2017,17/03/026,"26,654.07",INFOSERVE TECHNOLOGIES LIMITED,Recharge Suspense Account (Oracle PA Control Account)
FCO,FCO,08/03/2017,91733582,"26,629.00",HYDROGRAPHIC OFFICE,Programme Spend (Oracle Projects Control Account)
FCO,FCO,29/03/2017,23-Mar-17,"26,602.00",CHRISTIAN AID,Programme Spend (Oracle Projects Control Account)
FCO,FCO,23/03/2017,90289242,"26,597.07",BRITISH COUNCIL,Programme Spend (Oracle Projects Control Account)
FCO,FCO,14/03/2017,6135-VAR-SIN,"26,539.85",ISS FACILITY SERVICES LTD FCO OP,Multiple Accounts
FCO,FCO,27/03/2017,2017-0030/INV/JCLEC,"26,536.72",JCLEC FOUNDATION,Programme Spend (Oracle Projects Control Account)
FCO,FCO,09/03/2017,100171,"26,531.66",G4S SECURITY SERIVICES GHANA LTD,Local Guards
FCO,FCO,08/03/2017,19-27FEB17,"26,509.93",NORTEL SECURITY ZAO OP,Local Guards
FCO,FCO,30/03/2017,6060506,"26,500.00",FCO SERVICES,IT/IS Consultancy
FCO,FCO,28/03/2017,20-Mar-17,"26,479.72",UPR INFO ASIA,Programme Spend (Oracle Projects Control Account)
FCO,FCO,31/03/2017,6060621,"26,477.85",FCO SERVICES,Assets Under Construction (Oracle PA Control Account)
FCO,FCO,28/03/2017,BBT-2800-2800-24MAR17,"26,420.92",BRICKELL BAY TOWER LTD,Multiple Accounts
FCO,FCO,21/03/2017,33258,"26,419.07",WESTMINSTER FOUNDATION FOR DEMOCRACY,Programme Spend (Oracle Projects Control Account)
FCO,FCO,17/03/2017,07-Mar-17,"26,387.43",TRIAL,Programme Spend (Oracle Projects Control Account)
FCO,FCO,03/03/2017,1,"26,250.00",LARSEN AND TOUBRO LTD,Programme Spend (Oracle Projects Control Account)
FCO,FCO,16/03/2017,CONFERENCEFEE2,"26,186.76",OSCE ORG SECURITY COOPORATION EUROPE,Programme Spend (Oracle Projects Control Account)
FCO,FCO,14/03/2017,1062531,"26,148.97",AVARN SECURITY OY,Local Guards
FCO,FCO,30/03/2017,6060554,"26,121.32",FCO SERVICES,Assets Under Construction (Oracle PA Control Account)
FCO,FCO,23/03/2017,572,"26,113.22",AKTIS STRATEGY,Programme Spend (Oracle Projects Control Account)
FCO,FCO,22/03/2017,22-Mar-17,"26,099.83",ARTICLE 19,Programme Spend (Oracle Projects Control Account)
FCO,FCO,16/03/2017,1201,"26,099.00",AXIOM INTERNATIONAL LTD,Programme Spend (Oracle Projects Control Account)
FCO,FCO,20/03/2017,10139,"26,033.64",ROPE ENGINEERING LTD,Assets Under Construction (Oracle PA Control Account)
FCO,FCO,30/03/2017,35-20MAR17,"26,031.00",REPRIEVE,Programme Spend (Oracle Projects Control Account)
FCO,FCO,07/03/2017,EXTINV197,"25,988.00",COMMONWEALTH SECRETARIAT,Programme Spend (Oracle Projects Control Account)
FCO,FCO,02/03/2017,6059991,"25,939.76",FCO SERVICES,Construction Project more than 10k
FCO,FCO,13/03/2017,6176-POE-MAK,"25,926.52",ISS FACILITY SERVICES LTD FCO OP - POE,Multiple Accounts
FCO,FCO,30/03/2017,12321,"25,910.00",BRITISH AMERICAN BUSINESS INC,Programme Spend (Oracle Projects Control Account)
FCO,FCO,30/03/2017,3780053445,"25,907.82",COMPUTACENTER UK LTD,IT/IS Consultancy
FCO,FCO,24/03/2017,242072,"25,839.05",MORRISON HERSHFIELD,Recharge Suspense Account (Oracle PA Control Account)
FCO,FCO,31/03/2017,ESIN005704,"25,832.34",LONDON SCHOOL OF ECONOMICS AND POLITICAL SCIENCE,Specialist Training (Devolved)
FCO,FCO,15/03/2017,234457,"25,776.14",UNIVERSITY COLLEGE LONDON,Programme Spend (Oracle Projects Control Account)
FCO,FCO,15/03/2017,E-HB-06.03.2017-1,"25,772.60",PICKFORDS MOVE MANAGEMENT LTD,Heavy Baggage
FCO,FCO,08/03/2017,9470,"25,745.00",S & R FURNISHING CONSULTANTS,Residential Property Services
FCO,FCO,03/03/2017,VAT212,"25,714.38",COMMONWEALTH TELECOMMUNICATION ORG,Protocol - General VAT Refunds to Other Organisations
FCO,FCO,14/03/2017,2017-03-263,"25,659.57",G4S SECURITY SERVICES,Local Guards
FCO,FCO,02/03/2017,3780052056,"25,648.78",COMPUTACENTER UK LTD,Information Systems Maintenance
FCO,FCO,20/03/2017,20101,"25,635.54",SMALL MEDIA FOUNDATION,Programme Spend (Oracle Projects Control Account)
FCO,FCO,30/03/2017,30-Mar-17,"25,534.00",NORWEGIAN REFUGEE COUNCIL SOMALIA,Programme Spend (Oracle Projects Control Account)
FCO,FCO,29/03/2017,GB-HQ-SO03602,"25,481.17",GLOBE MOTORS,Recharge Suspense Account (Oracle PA Control Account)
FCO,FCO,09/03/2017,AS16/11,"25,461.50",REUNITE,Human Rights: Child Abduction
FCO,FCO,30/03/2017,INDEST6-42765,"25,431.62",IND OTHER DEBTORS,Property Maintenance Overseas Non Residential
FCO,FCO,06/03/2017,6059351,"25,426.77",FCO SERVICES,Air Freight Dip Bags - Freight & Clearance Charges
FCO,FCO,24/03/2017,250017767,"25,389.84",CABINET OFFICE,Miscellaneous Expenditure: inc subscriptions and equipment maintenance
FCO,FCO,01/03/2017,11946,"25,378.48",PILGRIMS AFRICA LTD,Local Guards
FCO,FCO,01/03/2017,11948,"25,378.48",PILGRIMS AFRICA LTD,Local Guards
FCO,FCO,01/03/2017,11947,"25,378.48",PILGRIMS AFRICA LTD,Local Guards
FCO,FCO,14/03/2017,11557,"25,378.02",DIPLOMATIC MISSION SUPPLIES LTD,Recharge Suspense Account (Oracle PA Control Account)
FCO,FCO,10/03/2017,09-Mar-17,"25,358.89",NATIONAL INSURANCE COMPANY,Vehicle Insurance
FCO,FCO,07/03/2017,05-Mar-17,"25,357.20",JUSTICE FOR LEGAL AID,Programme Spend (Oracle Projects Control Account)
FCO,FCO,16/03/2017,CONFERENCEFEE1,"25,278.07",OSCE ORG SECURITY COOPORATION EUROPE,Programme Spend (Oracle Projects Control Account)
FCO,FCO,28/03/2017,SLSQ/CC/BHC(S-I0002),"25,275.75",SLSQ CELLULARS,Recharge Suspense Account (Oracle PA Control Account)
FCO,FCO,20/03/2017,724,"25,212.54",INDUSTRIAS 3D EXPOSICIONES SA DE CV,Programme Spend (Oracle Projects Control Account)
FCO,FCO,21/03/2017,90037742,"25,210.05",COLLEGE OF POLICING,Programme Spend (Oracle Projects Control Account)
FCO,FCO,17/03/2017,14-Mar-17,"25,188.87",UMOJA HOUSE JMC,Property Maintenance Overseas Non Residential
FCO,FCO,30/03/2017,2,"25,178.56",EMERGENCY MANAGEMENT ACCREDITATION PROGRAM  EMAP,Programme Spend (Oracle Projects Control Account)
FCO,FCO,17/03/2017,17/2254,"25,170.00",AGENCIA CONSULTING LTD,Programme Spend (Oracle Projects Control Account)
FCO,FCO,10/03/2017,0217_HP-4,"25,165.44",INTERSERVE FM LTD,FM Interserve Works
FCO,FCO,20/03/2017,10-Mar-17,"25,160.00",RIFT VALLEY INSTITUTE,Training Courses
FCO,FCO,30/03/2017,MIL/451-17,"25,152.78",MASS INTERNATIONAL (PRIVATE) LTD,Assets Under Construction (Oracle PA Control Account)
FCO,FCO,31/03/2017,3358000297,"25,122.14",COMPUTACENTER UK LTD,Assets Under Construction (Oracle PA Control Account)
FCO,FCO,15/03/2017,TED_03_140317,"25,085.16",TED UNIVERSITESI,Programme Spend (Oracle Projects Control Account)
FCO,FCO,03/03/2017,1001016503,"25,026.06",BAE SYSTEMS APPLIED INTELLIGENCE LIMITED,Information Systems Maintenance
FCO,FCO,17/03/2017,06022017-16MAR17,"25,014.47",GRUP MIM MUS INS TUR AS,Recharge Suspense Account (Oracle PA Control Account)
FCO,FCO,15/03/2017,LONDON1-15/03/17,"-26,625.00",WORLD CAREERS NETWORK PLC,Programme Spend (Oracle Projects Control Account)
FCO,FCO,06/03/2017,7014-07CN,"-26,898.41",ADAM SMITH INTERNATIONAL,Programme Spend (Oracle Projects Control Account)
FCO,FCO,01/03/2017,451506268A,"-27,106.00",BRITSOURCE INTERNATIONAL,Purchase Of Uniforms
FCO,FCO,01/03/2017,750,"-27,689.73",DMS AFRICA,Multiple Accounts
FCO,FCO,24/03/2017,USWDEP13MAR17,"-28,684.31",NEXT GENERATION ENROLLMENT,US Healthcare Contract
FCO,FCO,15/03/2017,BUR BRI-COUNCIL1-03/03/17,"-29,484.89",BUR OTHER DEBTORS,Recharge Suspense Account (Oracle PA Control Account)
FCO,FCO,01/03/2017,JS86313,"-30,000.00",VODAFONE LTD,Multiple Accounts
FCO,FCO,14/03/2017,1561601-14/03/17,"-30,080.00",CAUSEWAY INSTITUTE FOR PEACE BUILDING AND CONFLICT RESOLUTION,Programme Spend (Oracle Projects Control Account)
FCO,FCO,23/03/2017,C16922,"-30,354.00",CAPITA BUSINESS SERVICES LTD,Multiple Accounts
FCO,FCO,01/03/2017,KPMG 16.12.16,"-32,300.89",KPMG FIDUCIAIRE,Recharge Suspense Account (Oracle PA Control Account)
FCO,FCO,01/03/2017,KPMG 18.11.16,"-32,768.35",KPMG FIDUCIAIRE,Recharge Suspense Account (Oracle PA Control Account)
FCO,FCO,01/03/2017,NCA-180117-02,"-32,789.72",SLC OTHER DEBTORS,Proceeds from the Sale of Capitalised Vehicles
FCO,FCO,31/03/2017,353500027,"-34,800.00",ICF CONSULTING LTD,Programme Spend (Oracle Projects Control Account)
FCO,FCO,01/03/2017,1800005137,"-35,200.00",HMRC HM REVENUE AND CUSTOMS,Multiple Accounts
FCO,FCO,13/03/2017,6172,"-37,683.61",ISS FACILITY SERVICES LTD FCO OP - POE,Rental Payments - residential
FCO,FCO,20/03/2017,COBNCA1-17/3,"-40,542.69",COB OTHER DEBTORS,Recharge Suspense Account (Oracle PA Control Account)
FCO,FCO,01/03/2017,7395391,"-41,013.26",DEFENCE BUSINESS SERVICES FINANCE,Programme Spend (Oracle Projects Control Account)
FCO,FCO,27/03/2017,SNF DFID-24/3/17,"-49,571.14",SNF OTHER DEBTORS,Proceeds from the Sale of Capitalised Vehicles
FCO,FCO,20/03/2017,28300179,"-50,000.00",AECOM,Programme Spend (Oracle Projects Control Account)
FCO,FCO,29/03/2017,6.23E+11,"-53,722.00",DEPARTMENT FOR INTERNATIONAL TRADE,Programme Spend (Oracle Projects Control Account)
FCO,FCO,01/03/2017,"19,832,054,206,317,500,000","-58,150.69",INTERNATIONAL COMMUNITY SCHOOL,Multiple Accounts
FCO,FCO,20/03/2017,79,"-60,346.00",CONSOLIDATED PR LTD,Public Relations
FCO,FCO,01/03/2017,LAP-MEA/2016/0019,"-62,966.00",LAPIS LIMITED,Programme Spend (Oracle Projects Control Account)
FCO,FCO,30/03/2017,6600005898,"-76,602.69",MAYORS OFFICE FOR POLICING AND CRIME MOPC,Programme Spend (Oracle Projects Control Account)
FCO,FCO,20/03/2017,15-Mar-17,"-85,875.00",MEDAFCO DEVELOPPEMENT,Programme Spend (Oracle Projects Control Account)
FCO,FCO,01/03/2017,27-Feb-17,"-99,998.00",CENTRE FOR HUMANITARIAN DIALOGUE,Programme Spend (Oracle Projects Control Account)
FCO,FCO,06/03/2017,195329919,"-109,437.64",E2V TECHNOLOGIES,Vehicle Maintenance
FCO,FCO,01/03/2017,FRP1-21/2/17,"-135,254.92",HUMANIS,Overseas Tax And Social Security
FCO,FCO,23/03/2017,RWUSBTIA2016/17,"-137,910.02",USW SUBORDINATE POSTS,Construction Project more than 10k
FCO,FCO,01/03/2017,LAP-LEV/2016/0037,"-155,601.54",LAPIS LIMITED,Programme Spend (Oracle Projects Control Account)
FCO,FCO,01/03/2017,FRP1-21/2/17,"-161,171.16",TRESOR PUBLIC,Other Debtors
FCO,FCO,07/03/2017,CUK01004172,"-180,405.00",CONTROL RISKS GROUP,UK Mobile Guarding Contract overseas
FCO,FCO,24/03/2017,CUK01004095,"-184,491.00",CONTROL RISKS GROUP,UK Mobile Guarding Contract overseas
FCO,FCO,23/03/2017,CN126-000389,"-1,987,419.45",G4S RISK MANAGEMENT LTD,UK Guarding Contracts Overseas
FCO,FCO,01/03/2017,CAOBLG1-21/2/17,"-2,383,489.59",CAO OTHER DEBTORS,Proceeds from Assets held for sale
FCO,FCO,01/03/2017,TF072704-007565,"-3,000,000.00",THE WORLD BANK,Programme Spend (Oracle Projects Control Account)
FCO,FCO,02/03/2017,BBCWS011-16RC,"-3,500,000.00",BBC  BRITISH BROADCASTING CORPORATION,Programme Spend (Oracle Projects Control Account)
FCO,FCO,09/03/2017,CAOBLG1-15/11/16-15NOV16,"-6,667,450.73",CAO OTHER DEBTORS,Proceeds from Assets held for sale
FCO,FCO,02/03/2017,CAOBLG1-15/11/16,"-6,925,643.59",CAO OTHER DEBTORS,Proceeds from Assets held for sale
